DepartmentFamily,Entity,Date,ExpenseType,ExpenseArea,Supplier,TransactionNumber,Amount,VATRegistrationNo,BNO,TNO,AccountCode,CostCentreCode,Period,
BEIS,The Insolvency Service,01/02/2017,Agency Workers,PROJECTS                                                                                            ,ALLEN LANE CONSULTANCY                                      ,BA0000302710,"89,907.72",,BA0000302710,1,C7110,2239,11,
BEIS,The Insolvency Service,01/02/2017,Computer and IT Systems,INFORMATION TECHNOLOGY                                                                              ,ATOS IT SERVICES UK LTD,BA0000302699,"190,120.92",,BA0000302699,1,E1100,3205,11,
BEIS,The Insolvency Service,01/02/2017,Computer and IT Systems,INFORMATION TECHNOLOGY                                                                              ,ATOS IT SERVICES UK LTD,BA0000302700,"3,403.35",,BA0000302700,1,E1100,3205,11,
BEIS,The Insolvency Service,01/02/2017,Computer and IT Systems,INFORMATION TECHNOLOGY                                                                              ,ATOS IT SERVICES UK LTD,BA0000302701,"9,445.88",,BA0000302701,1,E1100,3205,11,
BEIS,The Insolvency Service,01/02/2017,Agency Workers,P&C - People Relations                                                                              ,BADENOCH & CLARK,BA0000302709,841.86,232347975,BA0000302709,1,C7200,3502,11,
BEIS,The Insolvency Service,01/02/2017,Training Costs,PEOPLE & CAPABILITY                                                                                 ,CHARTERED INSTITUTE OF INTERNAL AUDITORS,BA0000302692,"-1,302.00",354316368,BA0000302692,1,P5200,3516,11,
BEIS,The Insolvency Service,01/02/2017,Training Costs,PEOPLE & CAPABILITY                                                                                 ,CHARTERED INSTITUTE OF INTERNAL AUDITORS,BA0000302693,"-1,302.00",354316368,BA0000302693,1,P5200,3516,11,
BEIS,The Insolvency Service,01/02/2017,Training Costs,PEOPLE & CAPABILITY                                                                                 ,CHARTERED INSTITUTE OF INTERNAL AUDITORS,BA0000302694,"-1,302.00",354316368,BA0000302694,1,P5200,3516,11,
BEIS,The Insolvency Service,01/02/2017,Training Costs,PEOPLE & CAPABILITY                                                                                 ,CHARTERED INSTITUTE OF INTERNAL AUDITORS,BA0000302695,"4,576.00",354316368,BA0000302695,1,P5200,3516,11,
BEIS,The Insolvency Service,01/02/2017,Office Supplies and Services,P&C - People Relations                                                                              ,ENEI Employers Network for Equality and Inclusion,BA0000302702,"4,320.00",,BA0000302702,1,R3300,3502,11,
BEIS,The Insolvency Service,01/02/2017,Computer and IT Systems,CUSTOMER AND COMMUNICATIONS                                                                         ,GOVDELIVERY INC                                             ,BA0000302705,763.20,,BA0000302705,1,E9130,3101,11,
BEIS,The Insolvency Service,01/02/2017,Investigation and Enforcement Costs,OFFICIAL RECEIVER SERVICES                                                                          ,HMCTS                                                       ,BA0000302698,155.00,,BA0000302698,1,N3100,4314,11,
BEIS,The Insolvency Service,01/02/2017,Employee Related Costs,P&C - People Relations                                                                              ,RIGHT CORECARE Ltd                                          ,BA0000302704,485.78,,BA0000302704,1,P4100,3502,11,
BEIS,The Insolvency Service,01/02/2017,Travel and Subsistence,BUSINESS SERVICES DIRECTORATE                                                                       ,Staff Payment,BA0000302706,15.10,,BA0000302706,1,G1130                         ,3612,11,
BEIS,The Insolvency Service,01/02/2017,Travel and Subsistence,BUSINESS SERVICES DIRECTORATE                                                                       ,Staff Payment,BA0000302706,3.20,,BA0000302706,1,G1130                         ,3612,11,
BEIS,The Insolvency Service,01/02/2017,Travel and Subsistence,FINANCE AND COMMERCIAL                                                                              ,Staff Payment,BA0000302706,49.50,,BA0000302706,1,G1130                         ,2201,11,
BEIS,The Insolvency Service,01/02/2017,Travel and Subsistence,FINANCE AND COMMERCIAL                                                                              ,Staff Payment,BA0000302706,105.20,,BA0000302706,1,G1130                         ,2201,11,
BEIS,The Insolvency Service,01/02/2017,Travel and Subsistence,FINANCE AND COMMERCIAL                                                                              ,Staff Payment,BA0000302706,18.00,,BA0000302706,1,G1140                         ,2201,11,
BEIS,The Insolvency Service,01/02/2017,Travel and Subsistence,FINANCE AND COMMERCIAL                                                                              ,Staff Payment,BA0000302706,18.00,,BA0000302706,1,G1140                         ,2201,11,
BEIS,The Insolvency Service,01/02/2017,Travel and Subsistence,INVESTIGATIONS & ENFORCEMENT                                                                        ,Staff Payment,BA0000302706,11.99,,BA0000302706,1,G1140                         ,3711,11,
BEIS,The Insolvency Service,01/02/2017,Travel and Subsistence,FINANCE AND COMMERCIAL                                                                              ,Staff Payment,BA0000302706,27.00,,BA0000302706,1,G1150                         ,2201,11,
BEIS,The Insolvency Service,01/02/2017,Travel and Subsistence,BUSINESS SERVICES DIRECTORATE                                                                       ,Staff Payment,BA0000302706,26.85,,BA0000302706,1,G1160                         ,3612,11,
BEIS,The Insolvency Service,01/02/2017,Travel and Subsistence,BUSINESS SERVICES DIRECTORATE                                                                       ,Staff Payment,BA0000302706,23.80,,BA0000302706,1,G1160                         ,3612,11,
BEIS,The Insolvency Service,01/02/2017,Travel and Subsistence,INVESTIGATIONS & ENFORCEMENT                                                                        ,Staff Payment,BA0000302706,20.30,,BA0000302706,1,G1160                         ,3711,11,
BEIS,The Insolvency Service,01/02/2017,Employee Related Costs,FINANCE AND COMMERCIAL                                                                              ,Staff Payment,BA0000302706,13.00,,BA0000302706,1,P2100                         ,2201,11,
BEIS,The Insolvency Service,01/02/2017,Employee Related Costs,FINANCE AND COMMERCIAL                                                                              ,Staff Payment,BA0000302706,7.50,,BA0000302706,1,P2100                         ,2201,11,
BEIS,The Insolvency Service,01/02/2017,Travel and Subsistence,BUSINESS SERVICES DIRECTORATE                                                                       ,Staff Payment,BA0000302706,4.80,,BA0000302706,1,G1130                         ,3613,11,
BEIS,The Insolvency Service,01/02/2017,Travel and Subsistence,INVESTIGATIONS & ENFORCEMENT                                                                        ,Staff Payment,BA0000302706,3.00,,BA0000302706,1,G1130                         ,3711,11,
BEIS,The Insolvency Service,01/02/2017,Travel and Subsistence,INVESTIGATIONS & ENFORCEMENT                                                                        ,Staff Payment,BA0000302706,15.20,,BA0000302706,1,G1130                         ,5003,11,
BEIS,The Insolvency Service,01/02/2017,Travel and Subsistence,OFFICIAL RECEIVER SERVICES                                                                          ,Staff Payment,BA0000302706,3.70,,BA0000302706,1,G1130                         ,4717,11,
BEIS,The Insolvency Service,01/02/2017,Travel and Subsistence,BUSINESS SERVICES DIRECTORATE                                                                       ,Staff Payment,BA0000302706,19.50,,BA0000302706,1,G1140                         ,3613,11,
BEIS,The Insolvency Service,01/02/2017,Travel and Subsistence,BUSINESS SERVICES DIRECTORATE                                                                       ,Staff Payment,BA0000302706,16.00,,BA0000302706,1,G1140                         ,3613,11,
BEIS,The Insolvency Service,01/02/2017,Travel and Subsistence,BUSINESS SERVICES DIRECTORATE                                                                       ,Staff Payment,BA0000302706,63.00,,BA0000302706,1,G1140                         ,3613,11,
BEIS,The Insolvency Service,01/02/2017,Travel and Subsistence,BUSINESS SERVICES DIRECTORATE                                                                       ,Staff Payment,BA0000302706,52.20,,BA0000302706,1,G1140                         ,3613,11,
BEIS,The Insolvency Service,01/02/2017,Travel and Subsistence,BUSINESS SERVICES DIRECTORATE                                                                       ,Staff Payment,BA0000302706,20.00,,BA0000302706,1,G1140                         ,3613,11,
BEIS,The Insolvency Service,01/02/2017,Travel and Subsistence,BUSINESS SERVICES DIRECTORATE                                                                       ,Staff Payment,BA0000302706,50.40,,BA0000302706,1,G1140                         ,3613,11,
BEIS,The Insolvency Service,01/02/2017,Travel and Subsistence,INVESTIGATIONS & ENFORCEMENT                                                                        ,Staff Payment,BA0000302706,86.00,,BA0000302706,1,G1140                         ,3711,11,
BEIS,The Insolvency Service,01/02/2017,Travel and Subsistence,INVESTIGATIONS & ENFORCEMENT                                                                        ,Staff Payment,BA0000302706,9.00,,BA0000302706,1,G1140                         ,3711,11,
BEIS,The Insolvency Service,01/02/2017,Travel and Subsistence,INVESTIGATIONS & ENFORCEMENT                                                                        ,Staff Payment,BA0000302706,43.20,,BA0000302706,1,G1140                         ,5003,11,
BEIS,The Insolvency Service,01/02/2017,Travel and Subsistence,OFFICIAL RECEIVER SERVICES                                                                          ,Staff Payment,BA0000302706,10.00,,BA0000302706,1,G1140                         ,4812,11,
BEIS,The Insolvency Service,01/02/2017,Travel and Subsistence,OFFICIAL RECEIVER SERVICES                                                                          ,Staff Payment,BA0000302706,63.45,,BA0000302706,1,G1140                         ,4812,11,
BEIS,The Insolvency Service,01/02/2017,Travel and Subsistence,OFFICIAL RECEIVER SERVICES                                                                          ,Staff Payment,BA0000302706,8.10,,BA0000302706,1,G1140                         ,4613,11,
BEIS,The Insolvency Service,01/02/2017,Travel and Subsistence,OFFICIAL RECEIVER SERVICES                                                                          ,Staff Payment,BA0000302706,103.95,,BA0000302706,1,G1140                         ,4613,11,
BEIS,The Insolvency Service,01/02/2017,Travel and Subsistence,OFFICIAL RECEIVER SERVICES                                                                          ,Staff Payment,BA0000302706,28.80,,BA0000302706,1,G1140                         ,4411,11,
BEIS,The Insolvency Service,01/02/2017,Travel and Subsistence,OFFICIAL RECEIVER SERVICES                                                                          ,Staff Payment,BA0000302706,10.70,,BA0000302706,1,G1140                         ,4812,11,
BEIS,The Insolvency Service,01/02/2017,Travel and Subsistence,OFFICIAL RECEIVER SERVICES                                                                          ,Staff Payment,BA0000302706,34.00,,BA0000302706,1,G1140                         ,4812,11,
BEIS,The Insolvency Service,01/02/2017,Travel and Subsistence,BUSINESS SERVICES DIRECTORATE                                                                       ,Staff Payment,BA0000302706,10.00,,BA0000302706,1,G1150                         ,3613,11,
BEIS,The Insolvency Service,01/02/2017,Travel and Subsistence,BUSINESS SERVICES DIRECTORATE                                                                       ,Staff Payment,BA0000302706,54.75,,BA0000302706,1,G1160                         ,3613,11,
BEIS,The Insolvency Service,01/02/2017,Travel and Subsistence,BUSINESS SERVICES DIRECTORATE                                                                       ,Staff Payment,BA0000302706,2.79,,BA0000302706,1,G1160                         ,3613,11,
BEIS,The Insolvency Service,01/02/2017,Travel and Subsistence,BUSINESS SERVICES DIRECTORATE                                                                       ,Staff Payment,BA0000302706,3.98,,BA0000302706,1,G1160                         ,3613,11,
BEIS,The Insolvency Service,01/02/2017,Travel and Subsistence,BUSINESS SERVICES DIRECTORATE                                                                       ,Staff Payment,BA0000302706,63.64,,BA0000302706,1,G1160                         ,3613,11,
BEIS,The Insolvency Service,01/02/2017,Travel and Subsistence,INVESTIGATIONS & ENFORCEMENT                                                                        ,Staff Payment,BA0000302706,5.00,,BA0000302706,1,G1160                         ,3711,11,
BEIS,The Insolvency Service,01/02/2017,Travel and Subsistence,INVESTIGATIONS & ENFORCEMENT                                                                        ,Staff Payment,BA0000302706,4.00,,BA0000302706,1,G1160                         ,3711,11,
BEIS,The Insolvency Service,01/02/2017,Travel and Subsistence,INVESTIGATIONS & ENFORCEMENT                                                                        ,Staff Payment,BA0000302706,4.00,,BA0000302706,1,G1160                         ,3711,11,
BEIS,The Insolvency Service,01/02/2017,Travel and Subsistence,INVESTIGATIONS & ENFORCEMENT                                                                        ,Staff Payment,BA0000302706,5.00,,BA0000302706,1,G1160                         ,3711,11,
BEIS,The Insolvency Service,01/02/2017,Travel and Subsistence,INVESTIGATIONS & ENFORCEMENT                                                                        ,Staff Payment,BA0000302706,3.49,,BA0000302706,1,G1160                         ,5003,11,
BEIS,The Insolvency Service,01/02/2017,Travel and Subsistence,INVESTIGATIONS & ENFORCEMENT                                                                        ,Staff Payment,BA0000302706,5.00,,BA0000302706,1,G1160                         ,5003,11,
BEIS,The Insolvency Service,01/02/2017,Travel and Subsistence,OFFICIAL RECEIVER SERVICES                                                                          ,Staff Payment,BA0000302706,5.00,,BA0000302706,1,G1160                         ,4613,11,
BEIS,The Insolvency Service,01/02/2017,Travel and Subsistence,OFFICIAL RECEIVER SERVICES                                                                          ,Staff Payment,BA0000302706,32.20,,BA0000302706,1,G1160                         ,4812,11,
BEIS,The Insolvency Service,01/02/2017,Travel and Subsistence,OFFICIAL RECEIVER SERVICES                                                                          ,Staff Payment,BA0000302706,25.00,,BA0000302706,1,G1160                         ,4716,11,
BEIS,The Insolvency Service,01/02/2017,Insolvency Case Related Costs,INVESTIGATIONS & ENFORCEMENT                                                                        ,Staff Payment,BA0000302706,7.00,,BA0000302706,1,H3100                         ,3711,11,
BEIS,The Insolvency Service,01/02/2017,Insolvency Case Related Costs,INVESTIGATIONS & ENFORCEMENT                                                                        ,Staff Payment,BA0000302706,7.00,,BA0000302706,1,H3100                         ,3711,11,
BEIS,The Insolvency Service,01/02/2017,Insolvency Case Related Costs,INVESTIGATIONS & ENFORCEMENT                                                                        ,Staff Payment,BA0000302706,7.00,,BA0000302706,1,H3100                         ,3711,11,
BEIS,The Insolvency Service,01/02/2017,Employee Related Costs,PEOPLE & CAPABILITY                                                                                 ,Staff Payment,BA0000302706,231.00,,BA0000302706,1,P3100                         ,3511,11,
BEIS,The Insolvency Service,01/02/2017,Employee Related Costs,PEOPLE & CAPABILITY                                                                                 ,Staff Payment,BA0000302706,231.00,,BA0000302706,1,P3100                         ,3511,11,
BEIS,The Insolvency Service,02/02/2017,Computer and IT Systems,INFORMATION TECHNOLOGY                                                                              ,ATOS IT SERVICES UK LTD,BA0000302750,669.27,,BA0000302750,1,E1100,3205,11,
BEIS,The Insolvency Service,02/02/2017,Computer and IT Systems,INFORMATION TECHNOLOGY                                                                              ,ATOS IT SERVICES UK LTD,BA0000302752,"17,928.10",,BA0000302752,1,E1100,3205,11,
BEIS,The Insolvency Service,02/02/2017,Investigation and Enforcement Costs,INVESTIGATIONS & ENFORCEMENT                                                                        ,DWF                                                         ,BA0000302747,"7,780.00",,BA0000302747,1,N5310,5003,11,
BEIS,The Insolvency Service,02/02/2017,Computer and IT Systems,INFORMATION TECHNOLOGY                                                                              ,EXPERIAN QAS LTD,BA0000302748,"1,957.61",887133593,BA0000302748,1,E9130,3202,11,
BEIS,The Insolvency Service,02/02/2017,Computer and IT Systems,INFORMATION TECHNOLOGY                                                                              ,EXPERIAN QAS LTD,BA0000302749,"9,783.60",887133593,BA0000302749,1,E9130,3202,11,
BEIS,The Insolvency Service,02/02/2017,Accommodation,ESTATES,GVA                                                         ,BA0000302731,492.69,657719590,BA0000302731,1,D2100,8316,11,
BEIS,The Insolvency Service,02/02/2017,Employee Related Costs,INFORMATION TECHNOLOGY                                                                              ,HAYS SPECIALIST RECRUITMENT LTD,BA0000302696,"-22,764.00",773695871,BA0000302696,1,P1100,3201,11,
BEIS,The Insolvency Service,02/02/2017,Employee Related Costs,INFORMATION TECHNOLOGY                                                                              ,HAYS SPECIALIST RECRUITMENT LTD,BA0000302755,"22,764.00",773695871,BA0000302755,1,P1100,3201,11,
BEIS,The Insolvency Service,02/02/2017,Accounting and Banking,BUSINESS SERVICES DIRECTORATE                                                                       ,HM TREASURY,BA0000302732,"16,750.00",888827544,BA0000302732,1,L2100,3431,11,
BEIS,The Insolvency Service,02/02/2017,Insolvency Case Related Costs,OFFICIAL RECEIVER SERVICES                                                                          ,HPI LTD,BA0000302744,14.54,942407139,BA0000302744,1,H3100,4214,11,
BEIS,The Insolvency Service,02/02/2017,Insolvency Case Related Costs,OFFICIAL RECEIVER SERVICES                                                                          ,HPI LTD,BA0000302746,7.27,942407139,BA0000302746,1,H3100,4411,11,
BEIS,The Insolvency Service,02/02/2017,Insolvency Case Related Costs,OFFICIAL RECEIVER SERVICES                                                                          ,HPI LTD,BA0000302753,8.50,942407139,BA0000302753,1,H3100,4812,11,
BEIS,The Insolvency Service,02/02/2017,Insolvency Case Related Costs,OFFICIAL RECEIVER SERVICES                                                                          ,HPI LTD,BA0000302767,200.30,942407139,BA0000302767,1,H3100,4511,11,
BEIS,The Insolvency Service,02/02/2017,Conferences,BUSINESS SERVICES DIRECTORATE                                                                       ,K INTERNATIONAL PLC,BA0000302727,360.00,600413800,BA0000302727,1,J1100,4220,11,
BEIS,The Insolvency Service,02/02/2017,Translation Costs,FINANCE AND COMMERCIAL                                                                              ,K INTERNATIONAL PLC,BA0000302727,338.93,600413800,BA0000302727,1,K3100,3427,11,
BEIS,The Insolvency Service,02/02/2017,Office Supplies and Services,INVESTIGATIONS & ENFORCEMENT                                                                        ,NEOPOST LIMITED (CONSUMABLES),BA0000302751,137.99,597265489,BA0000302751,1,R2100,3711,11,
BEIS,The Insolvency Service,02/02/2017,Postage,OFFICIAL RECEIVER SERVICES                                                                          ,NEOPOST LTD - FRANKING TOP UPS,BA0000302758,50.00,,BA0000302758,1,F2100,4613,11,
BEIS,The Insolvency Service,02/02/2017,Postage,OFFICIAL RECEIVER SERVICES                                                                          ,NEOPOST LTD - FRANKING TOP UPS,BA0000302758,500.00,,BA0000302758,1,F2100,4214,11,
BEIS,The Insolvency Service,02/02/2017,Postage,OFFICIAL RECEIVER SERVICES                                                                          ,NEOPOST LTD - FRANKING TOP UPS,BA0000302758,500.00,,BA0000302758,1,F2100,4715,11,
BEIS,The Insolvency Service,02/02/2017,Postage,OFFICIAL RECEIVER SERVICES                                                                          ,NEOPOST LTD - FRANKING TOP UPS,BA0000302758,500.00,,BA0000302758,1,F2100,4717,11,
BEIS,The Insolvency Service,02/02/2017,Postage,OFFICIAL RECEIVER SERVICES                                                                          ,NEOPOST LTD - FRANKING TOP UPS,BA0000302758,700.00,,BA0000302758,1,F2100,4613,11,
BEIS,The Insolvency Service,02/02/2017,Postage,OFFICIAL RECEIVER SERVICES                                                                          ,NEOPOST LTD - FRANKING TOP UPS,BA0000302758,"1,000.00",,BA0000302758,1,F2100,4511,11,
BEIS,The Insolvency Service,02/02/2017,Postage,OFFICIAL RECEIVER SERVICES                                                                          ,NEOPOST LTD - FRANKING TOP UPS,BA0000302758,"1,000.00",,BA0000302758,1,F2100,4611,11,
BEIS,The Insolvency Service,02/02/2017,Postage,OFFICIAL RECEIVER SERVICES                                                                          ,NEOPOST LTD - FRANKING TOP UPS,BA0000302758,"1,000.00",,BA0000302758,1,F2100,4813,11,
BEIS,The Insolvency Service,02/02/2017,Postage,OFFICIAL RECEIVER SERVICES                                                                          ,ROYAL MAIL GROUP LTD - RESPONSE SERVICES)                   ,BA0000302756,23.77,243170002,BA0000302756,1,F2100,4612,11,
BEIS,The Insolvency Service,02/02/2017,Postage,FINANCE AND COMMERCIAL                                                                              ,ROYAL MAIL GROUP LTD - RESPONSE SERVICES)                   ,BA0000302759,60.88,243170002,BA0000302759,1,F2200,3427,11,
BEIS,The Insolvency Service,02/02/2017,Insolvency Case Related Costs,OFFICIAL RECEIVER SERVICES                                                                          ,THE STATIONERY OFFICE LTD,BA0000302761,144.48,662774703,BA0000302761,1,H3100,4999,11,
BEIS,The Insolvency Service,02/02/2017,Insolvency Case Related Costs,OFFICIAL RECEIVER SERVICES                                                                          ,THE STATIONERY OFFICE LTD,BA0000302762,72.24,662774703,BA0000302762,1,H3100,4999,11,
BEIS,The Insolvency Service,02/02/2017,Insolvency Case Related Costs,OFFICIAL RECEIVER SERVICES                                                                          ,THE STATIONERY OFFICE LTD,BA0000302763,216.72,662774703,BA0000302763,1,H3100,4999,11,
BEIS,The Insolvency Service,02/02/2017,Insolvency Case Related Costs,OFFICIAL RECEIVER SERVICES                                                                          ,THE STATIONERY OFFICE LTD,BA0000302764,288.96,662774703,BA0000302764,1,H3100,4999,11,
BEIS,The Insolvency Service,02/02/2017,Insolvency Case Related Costs,OFFICIAL RECEIVER SERVICES                                                                          ,THE STATIONERY OFFICE LTD,BA0000302765,144.48,662774703,BA0000302765,1,H3100,4999,11,
BEIS,The Insolvency Service,02/02/2017,Insolvency Case Related Costs,OFFICIAL RECEIVER SERVICES                                                                          ,THE STATIONERY OFFICE LTD,BA0000302766,144.48,662774703,BA0000302766,1,H3100,4999,11,
BEIS,The Insolvency Service,02/02/2017,Postage,BUSINESS SERVICES DIRECTORATE                                                                       ,TNT UK LTD,BA0000302730,8.58,354715057,BA0000302730,1,F2200,3614,11,
BEIS,The Insolvency Service,02/02/2017,Postage,FINANCE AND COMMERCIAL                                                                              ,TNT UK LTD,BA0000302742,25.41,354715057,BA0000302742,1,F2200,3417,11,
BEIS,The Insolvency Service,02/02/2017,Postage,FINANCE AND COMMERCIAL                                                                              ,TNT UK LTD,BA0000302743,49.50,354715057,BA0000302743,1,F2200,3412,11,
BEIS,The Insolvency Service,02/02/2017,Office Supplies and Services,OFFICIAL RECEIVER SERVICES                                                                          ,XMA LTD,BA0000302754,89.46,115091937,BA0000302754,1,R2100,4613,11,
BEIS,The Insolvency Service,06/02/2017,Agency Workers,FINANCE AND COMMERCIAL,BROOK STREET (UK) LTD,BA0000302790,"19,418.86",,BA0000302790,1,C7200,3422,11,
BEIS,The Insolvency Service,06/02/2017,Telecoms,BUSINESS SERVICES DIRECTORATE                                                                       ,BT CONFERENCING SERVICES,BA0000302799,11.28,245719348,BA0000302799,1,F1100,4220,11,
BEIS,The Insolvency Service,06/02/2017,Telecoms,CHIEF EXECUTIVE DIVISION                                                                            ,BT CONFERENCING SERVICES,BA0000302799,8.15,245719348,BA0000302799,1,F1100,2200,11,
BEIS,The Insolvency Service,06/02/2017,Telecoms,CUSTOMER AND COMMUNICATIONS                                                                         ,BT CONFERENCING SERVICES,BA0000302799,22.61,245719348,BA0000302799,1,F1100,3100,11,
BEIS,The Insolvency Service,06/02/2017,Telecoms,CUSTOMER AND COMMUNICATIONS                                                                         ,BT CONFERENCING SERVICES,BA0000302799,45.70,245719348,BA0000302799,1,F1100,3101,11,
BEIS,The Insolvency Service,06/02/2017,Telecoms,ESTATES,BT CONFERENCING SERVICES,BA0000302799,4.78,245719348,BA0000302799,1,F1100,3411,11,
BEIS,The Insolvency Service,06/02/2017,Telecoms,EXTERNAL AFFAIRS                                                                                    ,BT CONFERENCING SERVICES,BA0000302799,0.70,245719348,BA0000302799,1,F1100,2111,11,
BEIS,The Insolvency Service,06/02/2017,Telecoms,EXTERNAL AFFAIRS                                                                                    ,BT CONFERENCING SERVICES,BA0000302799,8.77,245719348,BA0000302799,1,F1100,2119,11,
BEIS,The Insolvency Service,06/02/2017,Telecoms,EXTERNAL AFFAIRS                                                                                    ,BT CONFERENCING SERVICES,BA0000302799,12.19,245719348,BA0000302799,1,F1100,2112,11,
BEIS,The Insolvency Service,06/02/2017,Telecoms,FINANCE AND COMMERCIAL,BT CONFERENCING SERVICES,BA0000302799,5.24,245719348,BA0000302799,1,F1100,3421,11,
BEIS,The Insolvency Service,06/02/2017,Telecoms,FINANCE AND COMMERCIAL                                                                              ,BT CONFERENCING SERVICES,BA0000302799,6.42,245719348,BA0000302799,1,F1100,3420,11,
BEIS,The Insolvency Service,06/02/2017,Telecoms,FINANCE AND COMMERCIAL,BT CONFERENCING SERVICES,BA0000302799,7.52,245719348,BA0000302799,1,F1100,3423,11,
BEIS,The Insolvency Service,06/02/2017,Telecoms,FINANCE AND COMMERCIAL                                                                              ,BT CONFERENCING SERVICES,BA0000302799,9.62,245719348,BA0000302799,1,F1100,3419,11,
BEIS,The Insolvency Service,06/02/2017,Telecoms,FINANCE AND COMMERCIAL                                                                              ,BT CONFERENCING SERVICES,BA0000302799,23.64,245719348,BA0000302799,1,F1100,2201,11,
BEIS,The Insolvency Service,06/02/2017,Telecoms,FINANCE AND COMMERCIAL                                                                              ,BT CONFERENCING SERVICES,BA0000302799,32.06,245719348,BA0000302799,1,F1100,2205,11,
BEIS,The Insolvency Service,06/02/2017,Telecoms,FINANCE AND COMMERCIAL                                                                              ,BT CONFERENCING SERVICES,BA0000302799,50.16,245719348,BA0000302799,1,F1100,2218,11,
BEIS,The Insolvency Service,06/02/2017,Telecoms,FINANCE AND COMMERCIAL                                                                              ,BT CONFERENCING SERVICES,BA0000302799,60.26,245719348,BA0000302799,1,F1100,2219,11,
BEIS,The Insolvency Service,06/02/2017,Telecoms,FINANCE AND COMMERCIAL                                                                              ,BT CONFERENCING SERVICES,BA0000302799,85.04,245719348,BA0000302799,1,F1100,3209,11,
BEIS,The Insolvency Service,06/02/2017,Telecoms,FINANCE AND COMMERCIAL                                                                              ,BT CONFERENCING SERVICES,BA0000302799,108.40,245719348,BA0000302799,1,F1100,3417,11,
BEIS,The Insolvency Service,06/02/2017,Telecoms,INFORMATION TECHNOLOGY                                                                              ,BT CONFERENCING SERVICES,BA0000302799,4.80,245719348,BA0000302799,1,F1100,3415,11,
BEIS,The Insolvency Service,06/02/2017,Telecoms,INFORMATION TECHNOLOGY                                                                              ,BT CONFERENCING SERVICES,BA0000302799,40.26,245719348,BA0000302799,1,F1100,3418,11,
BEIS,The Insolvency Service,06/02/2017,Telecoms,INFORMATION TECHNOLOGY                                                                              ,BT CONFERENCING SERVICES,BA0000302799,86.99,245719348,BA0000302799,1,F1100,3207,11,
BEIS,The Insolvency Service,06/02/2017,Telecoms,INFORMATION TECHNOLOGY                                                                              ,BT CONFERENCING SERVICES,BA0000302799,123.04,245719348,BA0000302799,1,F1100,3286,11,
BEIS,The Insolvency Service,06/02/2017,Telecoms,INFORMATION TECHNOLOGY                                                                              ,BT CONFERENCING SERVICES,BA0000302799,726.56,245719348,BA0000302799,1,F1100,3416,11,
BEIS,The Insolvency Service,06/02/2017,Telecoms,INVESTIGATIONS & ENFORCEMENT                                                                        ,BT CONFERENCING SERVICES,BA0000302799,1.93,245719348,BA0000302799,1,F1100,3316,11,
BEIS,The Insolvency Service,06/02/2017,Telecoms,INVESTIGATIONS & ENFORCEMENT                                                                        ,BT CONFERENCING SERVICES,BA0000302799,2.75,245719348,BA0000302799,1,F1100,3717,11,
BEIS,The Insolvency Service,06/02/2017,Telecoms,INVESTIGATIONS & ENFORCEMENT                                                                        ,BT CONFERENCING SERVICES,BA0000302799,15.65,245719348,BA0000302799,1,F1100,3314,11,
BEIS,The Insolvency Service,06/02/2017,Telecoms,INVESTIGATIONS & ENFORCEMENT                                                                        ,BT CONFERENCING SERVICES,BA0000302799,21.22,245719348,BA0000302799,1,F1100,5001,11,
BEIS,The Insolvency Service,06/02/2017,Telecoms,INVESTIGATIONS & ENFORCEMENT                                                                        ,BT CONFERENCING SERVICES,BA0000302799,33.68,245719348,BA0000302799,1,F1100,3711,11,
BEIS,The Insolvency Service,06/02/2017,Telecoms,INVESTIGATIONS & ENFORCEMENT                                                                        ,BT CONFERENCING SERVICES,BA0000302799,80.64,245719348,BA0000302799,1,F1100,5004,11,
BEIS,The Insolvency Service,06/02/2017,Telecoms,INVESTIGATIONS & ENFORCEMENT                                                                        ,BT CONFERENCING SERVICES,BA0000302799,90.13,245719348,BA0000302799,1,F1100,5002,11,
BEIS,The Insolvency Service,06/02/2017,Telecoms,OFFICIAL RECEIVER SERVICES                                                                          ,BT CONFERENCING SERVICES,BA0000302799,0.02,245719348,BA0000302799,1,F1100,4212,11,
BEIS,The Insolvency Service,06/02/2017,Telecoms,OFFICIAL RECEIVER SERVICES                                                                          ,BT CONFERENCING SERVICES,BA0000302799,0.71,245719348,BA0000302799,1,F1100,4513,11,
BEIS,The Insolvency Service,06/02/2017,Telecoms,OFFICIAL RECEIVER SERVICES                                                                          ,BT CONFERENCING SERVICES,BA0000302799,3.62,245719348,BA0000302799,1,F1100,4716,11,
BEIS,The Insolvency Service,06/02/2017,Telecoms,OFFICIAL RECEIVER SERVICES                                                                          ,BT CONFERENCING SERVICES,BA0000302799,3.90,245719348,BA0000302799,1,F1100,4316,11,
BEIS,The Insolvency Service,06/02/2017,Telecoms,OFFICIAL RECEIVER SERVICES                                                                          ,BT CONFERENCING SERVICES,BA0000302799,4.87,245719348,BA0000302799,1,F1100,4314,11,
BEIS,The Insolvency Service,06/02/2017,Telecoms,OFFICIAL RECEIVER SERVICES                                                                          ,BT CONFERENCING SERVICES,BA0000302799,5.16,245719348,BA0000302799,1,F1100,4215,11,
BEIS,The Insolvency Service,06/02/2017,Telecoms,OFFICIAL RECEIVER SERVICES                                                                          ,BT CONFERENCING SERVICES,BA0000302799,5.44,245719348,BA0000302799,1,F1100,4104,11,
BEIS,The Insolvency Service,06/02/2017,Telecoms,OFFICIAL RECEIVER SERVICES                                                                          ,BT CONFERENCING SERVICES,BA0000302799,7.12,245719348,BA0000302799,1,F1100,4714,11,
BEIS,The Insolvency Service,06/02/2017,Telecoms,OFFICIAL RECEIVER SERVICES                                                                          ,BT CONFERENCING SERVICES,BA0000302799,9.20,245719348,BA0000302799,1,F1100,4101,11,
BEIS,The Insolvency Service,06/02/2017,Telecoms,OFFICIAL RECEIVER SERVICES                                                                          ,BT CONFERENCING SERVICES,BA0000302799,10.02,245719348,BA0000302799,1,F1100,4712,11,
BEIS,The Insolvency Service,06/02/2017,Telecoms,OFFICIAL RECEIVER SERVICES                                                                          ,BT CONFERENCING SERVICES,BA0000302799,12.85,245719348,BA0000302799,1,F1100,4717,11,
BEIS,The Insolvency Service,06/02/2017,Telecoms,OFFICIAL RECEIVER SERVICES                                                                          ,BT CONFERENCING SERVICES,BA0000302799,14.17,245719348,BA0000302799,1,F1100,4102,11,
BEIS,The Insolvency Service,06/02/2017,Telecoms,OFFICIAL RECEIVER SERVICES                                                                          ,BT CONFERENCING SERVICES,BA0000302799,14.38,245719348,BA0000302799,1,F1100,4310,11,
BEIS,The Insolvency Service,06/02/2017,Telecoms,OFFICIAL RECEIVER SERVICES                                                                          ,BT CONFERENCING SERVICES,BA0000302799,14.90,245719348,BA0000302799,1,F1100,4816,11,
BEIS,The Insolvency Service,06/02/2017,Telecoms,OFFICIAL RECEIVER SERVICES                                                                          ,BT CONFERENCING SERVICES,BA0000302799,16.81,245719348,BA0000302799,1,F1100,4511,11,
BEIS,The Insolvency Service,06/02/2017,Telecoms,OFFICIAL RECEIVER SERVICES                                                                          ,BT CONFERENCING SERVICES,BA0000302799,18.29,245719348,BA0000302799,1,F1100,4812,11,
BEIS,The Insolvency Service,06/02/2017,Telecoms,OFFICIAL RECEIVER SERVICES                                                                          ,BT CONFERENCING SERVICES,BA0000302799,18.34,245719348,BA0000302799,1,F1100,4715,11,
BEIS,The Insolvency Service,06/02/2017,Telecoms,OFFICIAL RECEIVER SERVICES                                                                          ,BT CONFERENCING SERVICES,BA0000302799,19.46,245719348,BA0000302799,1,F1100,4713,11,
BEIS,The Insolvency Service,06/02/2017,Telecoms,OFFICIAL RECEIVER SERVICES                                                                          ,BT CONFERENCING SERVICES,BA0000302799,20.53,245719348,BA0000302799,1,F1100,4214,11,
BEIS,The Insolvency Service,06/02/2017,Telecoms,OFFICIAL RECEIVER SERVICES                                                                          ,BT CONFERENCING SERVICES,BA0000302799,21.00,245719348,BA0000302799,1,F1100,4615,11,
BEIS,The Insolvency Service,06/02/2017,Telecoms,OFFICIAL RECEIVER SERVICES                                                                          ,BT CONFERENCING SERVICES,BA0000302799,23.03,245719348,BA0000302799,1,F1100,4814,11,
BEIS,The Insolvency Service,06/02/2017,Telecoms,OFFICIAL RECEIVER SERVICES                                                                          ,BT CONFERENCING SERVICES,BA0000302799,26.78,245719348,BA0000302799,1,F1100,4515,11,
BEIS,The Insolvency Service,06/02/2017,Telecoms,OFFICIAL RECEIVER SERVICES                                                                          ,BT CONFERENCING SERVICES,BA0000302799,33.08,245719348,BA0000302799,1,F1100,4315,11,
BEIS,The Insolvency Service,06/02/2017,Telecoms,OFFICIAL RECEIVER SERVICES                                                                          ,BT CONFERENCING SERVICES,BA0000302799,40.39,245719348,BA0000302799,1,F1100,4612,11,
BEIS,The Insolvency Service,06/02/2017,Telecoms,OFFICIAL RECEIVER SERVICES                                                                          ,BT CONFERENCING SERVICES,BA0000302799,50.28,245719348,BA0000302799,1,F1100,4211,11,
BEIS,The Insolvency Service,06/02/2017,Telecoms,P&C - People Relations                                                                              ,BT CONFERENCING SERVICES,BA0000302799,70.57,245719348,BA0000302799,1,F1100,3502,11,
BEIS,The Insolvency Service,06/02/2017,Telecoms,P&C - Talent                                                                                        ,BT CONFERENCING SERVICES,BA0000302799,8.88,245719348,BA0000302799,1,F1100,3519,11,
BEIS,The Insolvency Service,06/02/2017,Telecoms,PEOPLE & CAPABILITY                                                                                 ,BT CONFERENCING SERVICES,BA0000302799,35.88,245719348,BA0000302799,1,F1100,3511,11,
BEIS,The Insolvency Service,06/02/2017,Telecoms,PEOPLE & CAPABILITY                                                                                 ,BT CONFERENCING SERVICES,BA0000302799,113.87,245719348,BA0000302799,1,F1100,3501,11,
BEIS,The Insolvency Service,06/02/2017,Telecoms,STRATEGY                                                                                            ,BT CONFERENCING SERVICES,BA0000302799,24.16,245719348,BA0000302799,1,F1100,2004,11,
BEIS,The Insolvency Service,06/02/2017,Insolvency Case Related Costs,OFFICIAL RECEIVER SERVICES                                                                          ,COMPANIES HOUSE,BA0000302786,4.00,GD255,BA0000302786,1,R3100,4314,11,
BEIS,The Insolvency Service,06/02/2017,Insolvency Case Related Costs,OFFICIAL RECEIVER SERVICES                                                                          ,COMPANIES HOUSE,BA0000302795,4.00,GD255,BA0000302795,1,R3100,4514,11,
BEIS,The Insolvency Service,06/02/2017,Insolvency Case Related Costs,OFFICIAL RECEIVER SERVICES                                                                          ,HPI LTD,BA0000302789,96.06,942407139,BA0000302789,1,H3100,4315,11,
BEIS,The Insolvency Service,06/02/2017,Telecoms,OFFICIAL RECEIVER SERVICES                                                                          ,KCOM GROUP PLC,BA0000302787,72.00,647235137,BA0000302787,1,F1100,4511,11,
BEIS,The Insolvency Service,06/02/2017,Postage,BUSINESS SERVICES DIRECTORATE                                                                       ,NEOPOST LTD - FRANKING TOP UPS,BA0000302770,"1,000.00",,BA0000302770,1,F2100,4818,11,
BEIS,The Insolvency Service,06/02/2017,Postage,OFFICIAL RECEIVER SERVICES                                                                          ,NEOPOST LTD - FRANKING TOP UPS,BA0000302770,50.00,,BA0000302770,1,F2100,4511,11,
BEIS,The Insolvency Service,06/02/2017,Postage,OFFICIAL RECEIVER SERVICES                                                                          ,NEOPOST LTD - FRANKING TOP UPS,BA0000302770,50.00,,BA0000302770,1,F2100,4713,11,
BEIS,The Insolvency Service,06/02/2017,Postage,OFFICIAL RECEIVER SERVICES                                                                          ,NEOPOST LTD - FRANKING TOP UPS,BA0000302770,450.00,,BA0000302770,1,F2100,4316,11,
BEIS,The Insolvency Service,06/02/2017,Postage,OFFICIAL RECEIVER SERVICES                                                                          ,NEOPOST LTD - FRANKING TOP UPS,BA0000302770,500.00,,BA0000302770,1,F2100,4214,11,
BEIS,The Insolvency Service,06/02/2017,Postage,OFFICIAL RECEIVER SERVICES                                                                          ,NEOPOST LTD - FRANKING TOP UPS,BA0000302770,500.00,,BA0000302770,1,F2100,4611,11,
BEIS,The Insolvency Service,06/02/2017,Postage,OFFICIAL RECEIVER SERVICES                                                                          ,NEOPOST LTD - FRANKING TOP UPS,BA0000302770,500.00,,BA0000302770,1,F2100,4715,11,
BEIS,The Insolvency Service,06/02/2017,Postage,OFFICIAL RECEIVER SERVICES                                                                          ,NEOPOST LTD - FRANKING TOP UPS,BA0000302770,500.00,,BA0000302770,1,F2100,4717,11,
BEIS,The Insolvency Service,06/02/2017,Postage,OFFICIAL RECEIVER SERVICES                                                                          ,NEOPOST LTD - FRANKING TOP UPS,BA0000302770,600.00,,BA0000302770,1,F2100,4811,11,
BEIS,The Insolvency Service,06/02/2017,Postage,OFFICIAL RECEIVER SERVICES                                                                          ,NEOPOST LTD - FRANKING TOP UPS,BA0000302770,"1,000.00",,BA0000302770,1,F2100,4216,11,
BEIS,The Insolvency Service,06/02/2017,Postage,OFFICIAL RECEIVER SERVICES                                                                          ,NEOPOST LTD - FRANKING TOP UPS,BA0000302770,"1,000.00",,BA0000302770,1,F2100,4511,11,
BEIS,The Insolvency Service,06/02/2017,Postage,OFFICIAL RECEIVER SERVICES                                                                          ,NEOPOST LTD - FRANKING TOP UPS,BA0000302770,"1,000.00",,BA0000302770,1,F2100,4812,11,
BEIS,The Insolvency Service,06/02/2017,Postage,ESTATES,PARCELFORCE WORLDWIDE,BA0000302792,5.99,243170002,BA0000302792,1,F2200,3411,11,
BEIS,The Insolvency Service,06/02/2017,Postage,OFFICIAL RECEIVER SERVICES                                                                          ,PARCELFORCE WORLDWIDE,BA0000302792,22.13,243170002,BA0000302792,1,F2200,4413,11,
BEIS,The Insolvency Service,06/02/2017,Postage,OFFICIAL RECEIVER SERVICES                                                                          ,PARCELFORCE WORLDWIDE,BA0000302792,24.00,243170002,BA0000302792,1,F2200,4612,11,
BEIS,The Insolvency Service,06/02/2017,Postage,OFFICIAL RECEIVER SERVICES                                                                          ,PARCELFORCE WORLDWIDE,BA0000302792,64.68,243170002,BA0000302792,1,F2200,4611,11,
BEIS,The Insolvency Service,06/02/2017,Postage,OFFICIAL RECEIVER SERVICES                                                                          ,PARCELFORCE WORLDWIDE,BA0000302792,102.58,243170002,BA0000302792,1,F2200,4216,11,
BEIS,The Insolvency Service,06/02/2017,Employee Related Costs,FINANCE AND COMMERCIAL,POSTURITE (UK) LTD.,BA0000302798,780.38,,BA0000302798,1,P4100,3423,11,
BEIS,The Insolvency Service,06/02/2017,Training Costs,INFORMATION TECHNOLOGY                                                                              ,QA LIMITED,BA0000302793,"1,053.00",,BA0000302793,1,P5200,3207,11,
BEIS,The Insolvency Service,06/02/2017,Training Costs,INFORMATION TECHNOLOGY                                                                              ,QA LIMITED,BA0000302794,"1,053.00",,BA0000302794,1,P5200,3207,11,
BEIS,The Insolvency Service,06/02/2017,Training Costs,INFORMATION TECHNOLOGY                                                                              ,QA LIMITED,BA0000302797,"-1,053.00",,BA0000302797,1,P5200,3207,11,
BEIS,The Insolvency Service,06/02/2017,Training Costs,INFORMATION TECHNOLOGY                                                                              ,QA LIMITED,BA0000302802,"1,053.00",,BA0000302802,1,P5200,3207,11,
BEIS,The Insolvency Service,06/02/2017,Computer and IT Systems,INFORMATION TECHNOLOGY                                                                              ,UKCLOUD LTD                                                 ,BA0000302788,"4,447.07",122134958,BA0000302788,1,E9130,3202,11,
BEIS,The Insolvency Service,06/02/2017,Office Supplies and Services,FINANCE AND COMMERCIAL                                                                              ,WILLIAMS LEA LTD,BA0000302791,554.40,662774703,BA0000302791,1,R2100,3427,11,
BEIS,The Insolvency Service,07/02/2017,Agency Workers,PROJECTS                                                                                            ,ALLEN LANE CONSULTANCY                                      ,BA0000302846,"85,738.26",,BA0000302846,1,C7110,2239,11,
BEIS,The Insolvency Service,07/02/2017,Agency Workers,FINANCE AND COMMERCIAL                                                                              ,ALLEN LANE LIMITED,BA0000302840,"6,113.40",835970985,BA0000302840,1,C7110,3420,11,
BEIS,The Insolvency Service,07/02/2017,Investigation and Enforcement Costs,INVESTIGATIONS & ENFORCEMENT                                                                        ,BTG GLOBAL RISK PARTNERS,BA0000302823,"56,512.50",880996072,BA0000302823,1,N1300,3717,11,
BEIS,The Insolvency Service,07/02/2017,Agency Workers,INFORMATION TECHNOLOGY                                                                              ,CAPITA BUSINESS SERVICES LTD,BA0000302838,"8,216.86",618184140,BA0000302838,1,C7110,3202,11,
BEIS,The Insolvency Service,07/02/2017,Training Costs,PEOPLE & CAPABILITY                                                                                 ,CAPITA BUSINESS SERVICES LTD,BA0000302847,55.00,618184140,BA0000302847,1,P5200,3516,11,
BEIS,The Insolvency Service,07/02/2017,Insolvency Case Related Costs,BUSINESS SERVICES DIRECTORATE                                                                       ,COMPANIES HOUSE,BA0000302820,6.00,GD255,BA0000302820,1,R3100,3601,11,
BEIS,The Insolvency Service,07/02/2017,Insolvency Case Related Costs,OFFICIAL RECEIVER SERVICES                                                                          ,COMPANIES HOUSE,BA0000302815,4.00,GD255,BA0000302815,1,R3100,4716,11,
BEIS,The Insolvency Service,07/02/2017,Insolvency Case Related Costs,OFFICIAL RECEIVER SERVICES                                                                          ,COMPANIES HOUSE,BA0000302835,4.00,GD255,BA0000302835,1,R3100,4212,11,
BEIS,The Insolvency Service,07/02/2017,Insolvency Case Related Costs,OFFICIAL RECEIVER SERVICES                                                                          ,COMPANIES HOUSE,BA0000302836,4.00,GD255,BA0000302836,1,R3100,4315,11,
BEIS,The Insolvency Service,07/02/2017,Research Costs,EXTERNAL AFFAIRS                                                                                    ,COMPANIES HOUSE,BA0000302842,4.00,GD255,BA0000302842,1,R5200,2119,11,
BEIS,The Insolvency Service,07/02/2017,Agency Workers,INFORMATION TECHNOLOGY                                                                              ,CONCEPT INFORMATION TECHNOLOGY LTD                          ,BA0000302827,780.00,776147892,BA0000302827,1,C7110,3416,11,
BEIS,The Insolvency Service,07/02/2017,Agency Workers,INFORMATION TECHNOLOGY                                                                              ,CONCEPT INFORMATION TECHNOLOGY LTD                          ,BA0000302828,"3,060.00",776147892,BA0000302828,1,C7110,3202,11,
BEIS,The Insolvency Service,07/02/2017,Agency Workers,INFORMATION TECHNOLOGY                                                                              ,CONCEPT INFORMATION TECHNOLOGY LTD                          ,BA0000302829,"3,060.00",776147892,BA0000302829,1,C7110,3202,11,
BEIS,The Insolvency Service,07/02/2017,Agency Workers,INFORMATION TECHNOLOGY                                                                              ,CONCEPT INFORMATION TECHNOLOGY LTD                          ,BA0000302830,"1,170.00",776147892,BA0000302830,1,C7110,3416,11,
BEIS,The Insolvency Service,07/02/2017,Computer and IT Systems,BUSINESS SERVICES DIRECTORATE                                                                       ,EXPERIAN QAS LTD,BA0000302855,"2,160.00",887133593,BA0000302855,1,E9130,4818,11,
BEIS,The Insolvency Service,07/02/2017,Computer and IT Systems,BUSINESS SERVICES DIRECTORATE                                                                       ,EXPERIAN QAS LTD,BA0000302856,"-2,160.00",887133593,BA0000302856,1,E9130,4818,11,
BEIS,The Insolvency Service,07/02/2017,Computer and IT Systems,INFORMATION TECHNOLOGY                                                                              ,G4S FIRE & SECURITY SYSTEMS (UK) LTD                        ,BA0000302833,252.61,238560256,BA0000302833,1,E9130,3284,11,
BEIS,The Insolvency Service,07/02/2017,Computer and IT Systems,INFORMATION TECHNOLOGY                                                                              ,G4S FIRE & SECURITY SYSTEMS (UK) LTD                        ,BA0000302834,252.61,238560256,BA0000302834,1,E9130,3284,11,
BEIS,The Insolvency Service,07/02/2017,Insolvency Case Related Costs,OFFICIAL RECEIVER SERVICES                                                                          ,HPI LTD,BA0000302841,35.95,942407139,BA0000302841,1,H3100,4812,11,
BEIS,The Insolvency Service,07/02/2017,Investigation and Enforcement Costs,INVESTIGATIONS & ENFORCEMENT                                                                        ,K INTERNATIONAL PLC,BA0000302824,905.00,600413800,BA0000302824,1,N1300,3717,11,
BEIS,The Insolvency Service,07/02/2017,Training Costs,PEOPLE & CAPABILITY                                                                                 ,KAPLAN FINANCIAL,BA0000302853,973.33,,BA0000302853,1,P5200,3516,11,
BEIS,The Insolvency Service,07/02/2017,Computer and IT Systems,INFORMATION TECHNOLOGY                                                                              ,KDS UK LTD,BA0000302821,"2,786.40",776463881,BA0000302821,1,E9130,3202,11,
BEIS,The Insolvency Service,07/02/2017,Training Costs,PEOPLE & CAPABILITY                                                                                 ,KPMG LLP                                                    ,BA0000302839,373.00,,BA0000302839,1,P5200,3516,11,
BEIS,The Insolvency Service,07/02/2017,Training Costs,PEOPLE & CAPABILITY                                                                                 ,KPMG LLP                                                    ,BA0000302848,373.00,,BA0000302848,1,P5200,3516,11,
BEIS,The Insolvency Service,07/02/2017,Training Costs,PEOPLE & CAPABILITY                                                                                 ,KPMG LLP                                                    ,BA0000302849,249.00,,BA0000302849,1,P5200,3516,11,
BEIS,The Insolvency Service,07/02/2017,Training Costs,PEOPLE & CAPABILITY                                                                                 ,KPMG LLP                                                    ,BA0000302850,373.00,,BA0000302850,1,P5200,3516,11,
BEIS,The Insolvency Service,07/02/2017,Postage,FINANCE AND COMMERCIAL                                                                              ,ROYAL MAIL GROUP LTD - RESPONSE SERVICES)                   ,BA0000302814,79.55,243170002,BA0000302814,1,F2200,3427,11,
BEIS,The Insolvency Service,07/02/2017,Postage,INFORMATION TECHNOLOGY                                                                              ,ROYAL MAIL GROUP LTD - RESPONSE SERVICES)                   ,BA0000302831,-14.16,243170002,BA0000302831,1,F2200,3415,11,
BEIS,The Insolvency Service,07/02/2017,Postage,INFORMATION TECHNOLOGY                                                                              ,ROYAL MAIL GROUP LTD - RESPONSE SERVICES)                   ,BA0000302832,"3,599.00",243170002,BA0000302832,1,F2200,3415,11,
BEIS,The Insolvency Service,07/02/2017,Travel and Subsistence,P&C - Talent                                                                                        ,Staff Payment,BA0000302844,13.20,,BA0000302844,1,G1130                         ,3519,11,
BEIS,The Insolvency Service,07/02/2017,Travel and Subsistence,FINANCE AND COMMERCIAL                                                                              ,Staff Payment,BA0000302843,8.10,,BA0000302843,1,G1140                         ,2219,11,
BEIS,The Insolvency Service,07/02/2017,Travel and Subsistence,FINANCE AND COMMERCIAL                                                                              ,Staff Payment,BA0000302843,8.60,,BA0000302843,1,G1140                         ,2219,11,
BEIS,The Insolvency Service,07/02/2017,Travel and Subsistence,OFFICIAL RECEIVER SERVICES                                                                          ,Staff Payment,BA0000302844,25.50,,BA0000302844,1,G1140                         ,4717,11,
BEIS,The Insolvency Service,07/02/2017,Travel and Subsistence,P&C - Talent                                                                                        ,Staff Payment,BA0000302844,30.00,,BA0000302844,1,G1140                         ,3519,11,
BEIS,The Insolvency Service,07/02/2017,Travel and Subsistence,BUSINESS SERVICES DIRECTORATE                                                                       ,Staff Payment,BA0000302844,20.00,,BA0000302844,1,G1160                         ,4220,11,
BEIS,The Insolvency Service,07/02/2017,Travel and Subsistence,BUSINESS SERVICES DIRECTORATE                                                                       ,Staff Payment,BA0000302844,20.00,,BA0000302844,1,G1160                         ,4220,11,
BEIS,The Insolvency Service,07/02/2017,Travel and Subsistence,FINANCE AND COMMERCIAL                                                                              ,Staff Payment,BA0000302843,3.00,,BA0000302843,1,G1160                         ,2219,11,
BEIS,The Insolvency Service,07/02/2017,Travel and Subsistence,INFORMATION TECHNOLOGY                                                                              ,Staff Payment,BA0000302844,46.30,,BA0000302844,1,G1160                         ,3286,11,
BEIS,The Insolvency Service,07/02/2017,Travel and Subsistence,OFFICIAL RECEIVER SERVICES                                                                          ,Staff Payment,BA0000302854,40.00,,BA0000302854,1,G1160                         ,4101,11,
BEIS,The Insolvency Service,07/02/2017,Travel and Subsistence,P&C - Talent                                                                                        ,Staff Payment,BA0000302844,24.99,,BA0000302844,1,G1160                         ,3519,11,
BEIS,The Insolvency Service,07/02/2017,Travel and Subsistence,INVESTIGATIONS & ENFORCEMENT                                                                        ,Staff Payment,BA0000302843,5.60,,BA0000302843,1,G1130                         ,5003,11,
BEIS,The Insolvency Service,07/02/2017,Travel and Subsistence,INVESTIGATIONS & ENFORCEMENT                                                                        ,Staff Payment,BA0000302844,13.00,,BA0000302844,1,G1130                         ,5003,11,
BEIS,The Insolvency Service,07/02/2017,Travel and Subsistence,OFFICIAL RECEIVER SERVICES                                                                          ,Staff Payment,BA0000302843,5.10,,BA0000302843,1,G1130                         ,4613,11,
BEIS,The Insolvency Service,07/02/2017,Travel and Subsistence,OFFICIAL RECEIVER SERVICES                                                                          ,Staff Payment,BA0000302854,2.40,,BA0000302854,1,G1130                         ,4102,11,
BEIS,The Insolvency Service,07/02/2017,Travel and Subsistence,OFFICIAL RECEIVER SERVICES                                                                          ,Staff Payment,BA0000302843,6.10,,BA0000302843,1,G1130                         ,4613,11,
BEIS,The Insolvency Service,07/02/2017,Travel and Subsistence,OFFICIAL RECEIVER SERVICES                                                                          ,Staff Payment,BA0000302854,4.80,,BA0000302854,1,G1130                         ,4104,11,
BEIS,The Insolvency Service,07/02/2017,Travel and Subsistence,BUSINESS SERVICES DIRECTORATE                                                                       ,Staff Payment,BA0000302843,110.25,,BA0000302843,1,G1140                         ,3613,11,
BEIS,The Insolvency Service,07/02/2017,Travel and Subsistence,BUSINESS SERVICES DIRECTORATE                                                                       ,Staff Payment,BA0000302843,12.00,,BA0000302843,1,G1140                         ,4220,11,
BEIS,The Insolvency Service,07/02/2017,Travel and Subsistence,BUSINESS SERVICES DIRECTORATE                                                                       ,Staff Payment,BA0000302843,12.00,,BA0000302843,1,G1140                         ,4220,11,
BEIS,The Insolvency Service,07/02/2017,Travel and Subsistence,INVESTIGATIONS & ENFORCEMENT                                                                        ,Staff Payment,BA0000302844,45.90,,BA0000302844,1,G1140                         ,5004,11,
BEIS,The Insolvency Service,07/02/2017,Travel and Subsistence,INVESTIGATIONS & ENFORCEMENT                                                                        ,Staff Payment,BA0000302844,12.00,,BA0000302844,1,G1140                         ,3321,11,
BEIS,The Insolvency Service,07/02/2017,Travel and Subsistence,INVESTIGATIONS & ENFORCEMENT                                                                        ,Staff Payment,BA0000302844,18.90,,BA0000302844,1,G1140                         ,3321,11,
BEIS,The Insolvency Service,07/02/2017,Travel and Subsistence,INVESTIGATIONS & ENFORCEMENT                                                                        ,Staff Payment,BA0000302844,5.50,,BA0000302844,1,G1140                         ,5003,11,
BEIS,The Insolvency Service,07/02/2017,Travel and Subsistence,INVESTIGATIONS & ENFORCEMENT                                                                        ,Staff Payment,BA0000302844,43.20,,BA0000302844,1,G1140                         ,5003,11,
BEIS,The Insolvency Service,07/02/2017,Travel and Subsistence,OFFICIAL RECEIVER SERVICES                                                                          ,Staff Payment,BA0000302843,1.00,,BA0000302843,1,G1140                         ,4613,11,
BEIS,The Insolvency Service,07/02/2017,Travel and Subsistence,OFFICIAL RECEIVER SERVICES                                                                          ,Staff Payment,BA0000302843,32.40,,BA0000302843,1,G1140                         ,4613,11,
BEIS,The Insolvency Service,07/02/2017,Travel and Subsistence,OFFICIAL RECEIVER SERVICES                                                                          ,Staff Payment,BA0000302843,3.00,,BA0000302843,1,G1140                         ,4612,11,
BEIS,The Insolvency Service,07/02/2017,Travel and Subsistence,OFFICIAL RECEIVER SERVICES                                                                          ,Staff Payment,BA0000302843,44.10,,BA0000302843,1,G1140                         ,4612,11,
BEIS,The Insolvency Service,07/02/2017,Travel and Subsistence,OFFICIAL RECEIVER SERVICES                                                                          ,Staff Payment,BA0000302843,2.70,,BA0000302843,1,G1140                         ,4613,11,
BEIS,The Insolvency Service,07/02/2017,Travel and Subsistence,OFFICIAL RECEIVER SERVICES                                                                          ,Staff Payment,BA0000302843,3.15,,BA0000302843,1,G1140                         ,4613,11,
BEIS,The Insolvency Service,07/02/2017,Travel and Subsistence,OFFICIAL RECEIVER SERVICES                                                                          ,Staff Payment,BA0000302843,3.00,,BA0000302843,1,G1140                         ,4613,11,
BEIS,The Insolvency Service,07/02/2017,Travel and Subsistence,OFFICIAL RECEIVER SERVICES                                                                          ,Staff Payment,BA0000302843,66.60,,BA0000302843,1,G1140                         ,4612,11,
BEIS,The Insolvency Service,07/02/2017,Travel and Subsistence,OFFICIAL RECEIVER SERVICES                                                                          ,Staff Payment,BA0000302843,1.60,,BA0000302843,1,G1140                         ,4613,11,
BEIS,The Insolvency Service,07/02/2017,Travel and Subsistence,OFFICIAL RECEIVER SERVICES                                                                          ,Staff Payment,BA0000302843,42.00,,BA0000302843,1,G1140                         ,4613,11,
BEIS,The Insolvency Service,07/02/2017,Travel and Subsistence,OFFICIAL RECEIVER SERVICES                                                                          ,Staff Payment,BA0000302843,70.20,,BA0000302843,1,G1140                         ,4612,11,
BEIS,The Insolvency Service,07/02/2017,Travel and Subsistence,OFFICIAL RECEIVER SERVICES                                                                          ,Staff Payment,BA0000302843,12.60,,BA0000302843,1,G1140                         ,4413,11,
BEIS,The Insolvency Service,07/02/2017,Travel and Subsistence,OFFICIAL RECEIVER SERVICES                                                                          ,Staff Payment,BA0000302843,6.80,,BA0000302843,1,G1140                         ,4612,11,
BEIS,The Insolvency Service,07/02/2017,Travel and Subsistence,OFFICIAL RECEIVER SERVICES                                                                          ,Staff Payment,BA0000302843,67.50,,BA0000302843,1,G1140                         ,4612,11,
BEIS,The Insolvency Service,07/02/2017,Travel and Subsistence,OFFICIAL RECEIVER SERVICES                                                                          ,Staff Payment,BA0000302843,12.00,,BA0000302843,1,G1140                         ,4613,11,
BEIS,The Insolvency Service,07/02/2017,Travel and Subsistence,OFFICIAL RECEIVER SERVICES                                                                          ,Staff Payment,BA0000302843,37.80,,BA0000302843,1,G1140                         ,4315,11,
BEIS,The Insolvency Service,07/02/2017,Travel and Subsistence,OFFICIAL RECEIVER SERVICES                                                                          ,Staff Payment,BA0000302843,44.10,,BA0000302843,1,G1140                         ,4612,11,
BEIS,The Insolvency Service,07/02/2017,Travel and Subsistence,OFFICIAL RECEIVER SERVICES                                                                          ,Staff Payment,BA0000302843,2.00,,BA0000302843,1,G1140                         ,4613,11,
BEIS,The Insolvency Service,07/02/2017,Travel and Subsistence,OFFICIAL RECEIVER SERVICES                                                                          ,Staff Payment,BA0000302843,22.50,,BA0000302843,1,G1140                         ,4613,11,
BEIS,The Insolvency Service,07/02/2017,Travel and Subsistence,OFFICIAL RECEIVER SERVICES                                                                          ,Staff Payment,BA0000302843,1.00,,BA0000302843,1,G1140                         ,4613,11,
BEIS,The Insolvency Service,07/02/2017,Travel and Subsistence,OFFICIAL RECEIVER SERVICES                                                                          ,Staff Payment,BA0000302843,18.00,,BA0000302843,1,G1140                         ,4613,11,
BEIS,The Insolvency Service,07/02/2017,Travel and Subsistence,OFFICIAL RECEIVER SERVICES                                                                          ,Staff Payment,BA0000302843,2.00,,BA0000302843,1,G1140                         ,4812,11,
BEIS,The Insolvency Service,07/02/2017,Travel and Subsistence,OFFICIAL RECEIVER SERVICES                                                                          ,Staff Payment,BA0000302843,16.65,,BA0000302843,1,G1140                         ,4812,11,
BEIS,The Insolvency Service,07/02/2017,Travel and Subsistence,OFFICIAL RECEIVER SERVICES                                                                          ,Staff Payment,BA0000302844,8.10,,BA0000302844,1,G1140                         ,4613,11,
BEIS,The Insolvency Service,07/02/2017,Travel and Subsistence,OFFICIAL RECEIVER SERVICES                                                                          ,Staff Payment,BA0000302854,12.00,,BA0000302854,1,G1140                         ,4102,11,
BEIS,The Insolvency Service,07/02/2017,Travel and Subsistence,OFFICIAL RECEIVER SERVICES                                                                          ,Staff Payment,BA0000302843,3.50,,BA0000302843,1,G1140                         ,4613,11,
BEIS,The Insolvency Service,07/02/2017,Travel and Subsistence,OFFICIAL RECEIVER SERVICES                                                                          ,Staff Payment,BA0000302843,103.50,,BA0000302843,1,G1140                         ,4613,11,
BEIS,The Insolvency Service,07/02/2017,Travel and Subsistence,OFFICIAL RECEIVER SERVICES                                                                          ,Staff Payment,BA0000302843,10.00,,BA0000302843,1,G1140                         ,4312,11,
BEIS,The Insolvency Service,07/02/2017,Travel and Subsistence,OFFICIAL RECEIVER SERVICES                                                                          ,Staff Payment,BA0000302843,59.40,,BA0000302843,1,G1140                         ,4312,11,
BEIS,The Insolvency Service,07/02/2017,Travel and Subsistence,OFFICIAL RECEIVER SERVICES                                                                          ,Staff Payment,BA0000302844,5.50,,BA0000302844,1,G1140                         ,4315,11,
BEIS,The Insolvency Service,07/02/2017,Travel and Subsistence,OFFICIAL RECEIVER SERVICES                                                                          ,Staff Payment,BA0000302844,94.50,,BA0000302844,1,G1140                         ,4315,11,
BEIS,The Insolvency Service,07/02/2017,Travel and Subsistence,OFFICIAL RECEIVER SERVICES                                                                          ,Staff Payment,BA0000302844,9.90,,BA0000302844,1,G1140                         ,4413,11,
BEIS,The Insolvency Service,07/02/2017,Travel and Subsistence,OFFICIAL RECEIVER SERVICES                                                                          ,Staff Payment,BA0000302844,11.50,,BA0000302844,1,G1140                         ,4413,11,
BEIS,The Insolvency Service,07/02/2017,Travel and Subsistence,OFFICIAL RECEIVER SERVICES                                                                          ,Staff Payment,BA0000302844,20.25,,BA0000302844,1,G1140                         ,4411,11,
BEIS,The Insolvency Service,07/02/2017,Travel and Subsistence,OFFICIAL RECEIVER SERVICES                                                                          ,Staff Payment,BA0000302844,5.00,,BA0000302844,1,G1140                         ,4812,11,
BEIS,The Insolvency Service,07/02/2017,Travel and Subsistence,OFFICIAL RECEIVER SERVICES                                                                          ,Staff Payment,BA0000302844,36.90,,BA0000302844,1,G1140                         ,4812,11,
BEIS,The Insolvency Service,07/02/2017,Travel and Subsistence,OFFICIAL RECEIVER SERVICES                                                                          ,Staff Payment,BA0000302844,37.80,,BA0000302844,1,G1140                         ,4315,11,
BEIS,The Insolvency Service,07/02/2017,Travel and Subsistence,OFFICIAL RECEIVER SERVICES                                                                          ,Staff Payment,BA0000302844,12.50,,BA0000302844,1,G1140                         ,4413,11,
BEIS,The Insolvency Service,07/02/2017,Travel and Subsistence,OFFICIAL RECEIVER SERVICES                                                                          ,Staff Payment,BA0000302844,119.70,,BA0000302844,1,G1140                         ,4413,11,
BEIS,The Insolvency Service,07/02/2017,Travel and Subsistence,OFFICIAL RECEIVER SERVICES                                                                          ,Staff Payment,BA0000302844,16.00,,BA0000302844,1,G1140                         ,4102,11,
BEIS,The Insolvency Service,07/02/2017,Travel and Subsistence,OFFICIAL RECEIVER SERVICES                                                                          ,Staff Payment,BA0000302844,16.00,,BA0000302844,1,G1140                         ,4102,11,
BEIS,The Insolvency Service,07/02/2017,Travel and Subsistence,PEOPLE & CAPABILITY                                                                                 ,Staff Payment,BA0000302843,5.50,,BA0000302843,1,G1140                         ,3516,11,
BEIS,The Insolvency Service,07/02/2017,Travel and Subsistence,BUSINESS SERVICES DIRECTORATE                                                                       ,Staff Payment,BA0000302843,7.00,,BA0000302843,1,G1150                         ,4818,11,
BEIS,The Insolvency Service,07/02/2017,Travel and Subsistence,OFFICIAL RECEIVER SERVICES                                                                          ,Staff Payment,BA0000302844,7.00,,BA0000302844,1,G1150                         ,4713,11,
BEIS,The Insolvency Service,07/02/2017,Travel and Subsistence,OFFICIAL RECEIVER SERVICES                                                                          ,Staff Payment,BA0000302844,8.00,,BA0000302844,1,G1150                         ,4411,11,
BEIS,The Insolvency Service,07/02/2017,Travel and Subsistence,OFFICIAL RECEIVER SERVICES                                                                          ,Staff Payment,BA0000302854,7.00,,BA0000302854,1,G1150                         ,4104,11,
BEIS,The Insolvency Service,07/02/2017,Travel and Subsistence,BUSINESS SERVICES DIRECTORATE                                                                       ,Staff Payment,BA0000302843,20.48,,BA0000302843,1,G1160                         ,4818,11,
BEIS,The Insolvency Service,07/02/2017,Travel and Subsistence,BUSINESS SERVICES DIRECTORATE                                                                       ,Staff Payment,BA0000302843,10.00,,BA0000302843,1,G1160                         ,4818,11,
BEIS,The Insolvency Service,07/02/2017,Travel and Subsistence,BUSINESS SERVICES DIRECTORATE                                                                       ,Staff Payment,BA0000302843,24.68,,BA0000302843,1,G1160                         ,4220,11,
BEIS,The Insolvency Service,07/02/2017,Travel and Subsistence,BUSINESS SERVICES DIRECTORATE                                                                       ,Staff Payment,BA0000302843,3.39,,BA0000302843,1,G1160                         ,4220,11,
BEIS,The Insolvency Service,07/02/2017,Travel and Subsistence,BUSINESS SERVICES DIRECTORATE                                                                       ,Staff Payment,BA0000302843,3.30,,BA0000302843,1,G1160                         ,4220,11,
BEIS,The Insolvency Service,07/02/2017,Travel and Subsistence,BUSINESS SERVICES DIRECTORATE                                                                       ,Staff Payment,BA0000302844,24.99,,BA0000302844,1,G1160                         ,4220,11,
BEIS,The Insolvency Service,07/02/2017,Travel and Subsistence,BUSINESS SERVICES DIRECTORATE                                                                       ,Staff Payment,BA0000302843,24.00,,BA0000302843,1,G1160                         ,4220,11,
BEIS,The Insolvency Service,07/02/2017,Travel and Subsistence,BUSINESS SERVICES DIRECTORATE                                                                       ,Staff Payment,BA0000302844,20.00,,BA0000302844,1,G1160                         ,4220,11,
BEIS,The Insolvency Service,07/02/2017,Travel and Subsistence,FINANCE AND COMMERCIAL,Staff Payment,BA0000302843,4.19,,BA0000302843,1,G1160                         ,3421,11,
BEIS,The Insolvency Service,07/02/2017,Travel and Subsistence,INVESTIGATIONS & ENFORCEMENT                                                                        ,Staff Payment,BA0000302843,4.49,,BA0000302843,1,G1160                         ,3711,11,
BEIS,The Insolvency Service,07/02/2017,Travel and Subsistence,INVESTIGATIONS & ENFORCEMENT                                                                        ,Staff Payment,BA0000302844,126.99,,BA0000302844,1,G1160                         ,3711,11,
BEIS,The Insolvency Service,07/02/2017,Travel and Subsistence,INVESTIGATIONS & ENFORCEMENT                                                                        ,Staff Payment,BA0000302843,7.16,,BA0000302843,1,G1160                         ,3711,11,
BEIS,The Insolvency Service,07/02/2017,Travel and Subsistence,INVESTIGATIONS & ENFORCEMENT                                                                        ,Staff Payment,BA0000302843,5.00,,BA0000302843,1,G1160                         ,3711,11,
BEIS,The Insolvency Service,07/02/2017,Travel and Subsistence,INVESTIGATIONS & ENFORCEMENT                                                                        ,Staff Payment,BA0000302844,3.49,,BA0000302844,1,G1160                         ,5003,11,
BEIS,The Insolvency Service,07/02/2017,Travel and Subsistence,INVESTIGATIONS & ENFORCEMENT                                                                        ,Staff Payment,BA0000302844,4.85,,BA0000302844,1,G1160                         ,3711,11,
BEIS,The Insolvency Service,07/02/2017,Travel and Subsistence,OFFICIAL RECEIVER SERVICES                                                                          ,Staff Payment,BA0000302843,5.00,,BA0000302843,1,G1160                         ,4612,11,
BEIS,The Insolvency Service,07/02/2017,Travel and Subsistence,OFFICIAL RECEIVER SERVICES                                                                          ,Staff Payment,BA0000302843,9.00,,BA0000302843,1,G1160                         ,4613,11,
BEIS,The Insolvency Service,07/02/2017,Travel and Subsistence,OFFICIAL RECEIVER SERVICES                                                                          ,Staff Payment,BA0000302843,5.00,,BA0000302843,1,G1160                         ,4613,11,
BEIS,The Insolvency Service,07/02/2017,Travel and Subsistence,OFFICIAL RECEIVER SERVICES                                                                          ,Staff Payment,BA0000302843,20.00,,BA0000302843,1,G1160                         ,4612,11,
BEIS,The Insolvency Service,07/02/2017,Travel and Subsistence,OFFICIAL RECEIVER SERVICES                                                                          ,Staff Payment,BA0000302843,2.70,,BA0000302843,1,G1160                         ,4613,11,
BEIS,The Insolvency Service,07/02/2017,Travel and Subsistence,OFFICIAL RECEIVER SERVICES                                                                          ,Staff Payment,BA0000302843,5.00,,BA0000302843,1,G1160                         ,4613,11,
BEIS,The Insolvency Service,07/02/2017,Travel and Subsistence,OFFICIAL RECEIVER SERVICES                                                                          ,Staff Payment,BA0000302844,45.00,,BA0000302844,1,G1160                         ,4713,11,
BEIS,The Insolvency Service,07/02/2017,Travel and Subsistence,OFFICIAL RECEIVER SERVICES                                                                          ,Staff Payment,BA0000302843,3.67,,BA0000302843,1,G1160                         ,4612,11,
BEIS,The Insolvency Service,07/02/2017,Travel and Subsistence,OFFICIAL RECEIVER SERVICES                                                                          ,Staff Payment,BA0000302854,69.83,,BA0000302854,1,G1160                         ,4102,11,
BEIS,The Insolvency Service,07/02/2017,Travel and Subsistence,OFFICIAL RECEIVER SERVICES                                                                          ,Staff Payment,BA0000302854,40.00,,BA0000302854,1,G1160                         ,4101,11,
BEIS,The Insolvency Service,07/02/2017,Travel and Subsistence,OFFICIAL RECEIVER SERVICES                                                                          ,Staff Payment,BA0000302854,40.00,,BA0000302854,1,G1160                         ,4101,11,
BEIS,The Insolvency Service,07/02/2017,Travel and Subsistence,OFFICIAL RECEIVER SERVICES                                                                          ,Staff Payment,BA0000302843,5.00,,BA0000302843,1,G1160                         ,4613,11,
BEIS,The Insolvency Service,07/02/2017,Travel and Subsistence,OFFICIAL RECEIVER SERVICES                                                                          ,Staff Payment,BA0000302843,5.00,,BA0000302843,1,G1160                         ,4613,11,
BEIS,The Insolvency Service,07/02/2017,Travel and Subsistence,OFFICIAL RECEIVER SERVICES                                                                          ,Staff Payment,BA0000302843,5.00,,BA0000302843,1,G1160                         ,4613,11,
BEIS,The Insolvency Service,07/02/2017,Travel and Subsistence,OFFICIAL RECEIVER SERVICES                                                                          ,Staff Payment,BA0000302844,30.00,,BA0000302844,1,G1160                         ,4312,11,
BEIS,The Insolvency Service,07/02/2017,Travel and Subsistence,OFFICIAL RECEIVER SERVICES                                                                          ,Staff Payment,BA0000302844,5.00,,BA0000302844,1,G1160                         ,4613,11,
BEIS,The Insolvency Service,07/02/2017,Travel and Subsistence,OFFICIAL RECEIVER SERVICES                                                                          ,Staff Payment,BA0000302843,5.00,,BA0000302843,1,G1160                         ,4413,11,
BEIS,The Insolvency Service,07/02/2017,Travel and Subsistence,OFFICIAL RECEIVER SERVICES                                                                          ,Staff Payment,BA0000302854,4.00,,BA0000302854,1,G1160                         ,4102,11,
BEIS,The Insolvency Service,07/02/2017,Travel and Subsistence,OFFICIAL RECEIVER SERVICES                                                                          ,Staff Payment,BA0000302843,5.00,,BA0000302843,1,G1160                         ,4413,11,
BEIS,The Insolvency Service,07/02/2017,Travel and Subsistence,OFFICIAL RECEIVER SERVICES                                                                          ,Staff Payment,BA0000302843,1.85,,BA0000302843,1,G1160                         ,4613,11,
BEIS,The Insolvency Service,07/02/2017,Travel and Subsistence,OFFICIAL RECEIVER SERVICES                                                                          ,Staff Payment,BA0000302844,5.00,,BA0000302844,1,G1160                         ,4413,11,
BEIS,The Insolvency Service,07/02/2017,Travel and Subsistence,OFFICIAL RECEIVER SERVICES                                                                          ,Staff Payment,BA0000302843,8.00,,BA0000302843,1,G1160                         ,4314,11,
BEIS,The Insolvency Service,07/02/2017,Travel and Subsistence,OFFICIAL RECEIVER SERVICES                                                                          ,Staff Payment,BA0000302844,15.00,,BA0000302844,1,G1160                         ,4411,11,
BEIS,The Insolvency Service,07/02/2017,Travel and Subsistence,OFFICIAL RECEIVER SERVICES                                                                          ,Staff Payment,BA0000302854,58.59,,BA0000302854,1,G1160                         ,4104,11,
BEIS,The Insolvency Service,07/02/2017,Travel and Subsistence,OFFICIAL RECEIVER SERVICES                                                                          ,Staff Payment,BA0000302844,10.00,,BA0000302844,1,G1160                         ,4315,11,
BEIS,The Insolvency Service,07/02/2017,Travel and Subsistence,OFFICIAL RECEIVER SERVICES                                                                          ,Staff Payment,BA0000302844,5.00,,BA0000302844,1,G1160                         ,4315,11,
BEIS,The Insolvency Service,07/02/2017,Travel and Subsistence,OFFICIAL RECEIVER SERVICES                                                                          ,Staff Payment,BA0000302844,4.75,,BA0000302844,1,G1160                         ,4511,11,
BEIS,The Insolvency Service,07/02/2017,Travel and Subsistence,OFFICIAL RECEIVER SERVICES                                                                          ,Staff Payment,BA0000302844,10.00,,BA0000302844,1,G1160                         ,4102,11,
BEIS,The Insolvency Service,07/02/2017,Travel and Subsistence,OFFICIAL RECEIVER SERVICES                                                                          ,Staff Payment,BA0000302844,10.00,,BA0000302844,1,G1160                         ,4102,11,
BEIS,The Insolvency Service,07/02/2017,Travel and Subsistence,PEOPLE & CAPABILITY                                                                                 ,Staff Payment,BA0000302843,3.39,,BA0000302843,1,G1160                         ,3516,11,
BEIS,The Insolvency Service,07/02/2017,Travel and Subsistence,PEOPLE & CAPABILITY                                                                                 ,Staff Payment,BA0000302843,1.95,,BA0000302843,1,G1160                         ,3516,11,
BEIS,The Insolvency Service,07/02/2017,Travel and Subsistence,PEOPLE & CAPABILITY                                                                                 ,Staff Payment,BA0000302843,4.50,,BA0000302843,1,G1160                         ,3516,11,
BEIS,The Insolvency Service,07/02/2017,Insolvency Case Related Costs,INVESTIGATIONS & ENFORCEMENT                                                                        ,Staff Payment,BA0000302844,7.00,,BA0000302844,1,H3100                         ,3711,11,
BEIS,The Insolvency Service,07/02/2017,Employee Related Costs,PEOPLE & CAPABILITY                                                                                 ,Staff Payment,BA0000302844,231.00,,BA0000302844,1,P3100                         ,3511,11,
BEIS,The Insolvency Service,07/02/2017,Office Supplies and Services,OFFICIAL RECEIVER SERVICES                                                                          ,Staff Payment,BA0000302843,37.31,,BA0000302843,1,R2100                         ,4411,11,
BEIS,The Insolvency Service,07/02/2017,Office Supplies and Services,OFFICIAL RECEIVER SERVICES                                                                          ,Staff Payment,BA0000302844,8.30,,BA0000302844,1,R3200                         ,4102,11,
BEIS,The Insolvency Service,07/02/2017,Office Supplies and Services,PEOPLE & CAPABILITY                                                                                 ,Staff Payment,BA0000302843,2.85,,BA0000302843,1,R3200                         ,3516,11,
BEIS,The Insolvency Service,07/02/2017,Telecoms,BUSINESS SERVICES DIRECTORATE                                                                       ,SYNTEC LTD                                                  ,BA0000302851,476.47,810309963,BA0000302851,1,F1100,2223,11,
BEIS,The Insolvency Service,07/02/2017,Insolvency Case Related Costs,OFFICIAL RECEIVER SERVICES                                                                          ,THE STATIONERY OFFICE LTD,BA0000302816,144.48,662774703,BA0000302816,1,H3100,4999,11,
BEIS,The Insolvency Service,07/02/2017,Insolvency Case Related Costs,OFFICIAL RECEIVER SERVICES                                                                          ,THE STATIONERY OFFICE LTD,BA0000302817,361.20,662774703,BA0000302817,1,H3100,4999,11,
BEIS,The Insolvency Service,07/02/2017,Insolvency Case Related Costs,OFFICIAL RECEIVER SERVICES                                                                          ,THE STATIONERY OFFICE LTD,BA0000302818,216.72,662774703,BA0000302818,1,H3100,4999,11,
BEIS,The Insolvency Service,07/02/2017,Insolvency Case Related Costs,OFFICIAL RECEIVER SERVICES                                                                          ,THE STATIONERY OFFICE LTD,BA0000302819,288.96,662774703,BA0000302819,1,H3100,4999,11,
BEIS,The Insolvency Service,07/02/2017,Insolvency Case Related Costs,FINANCE AND COMMERCIAL                                                                              ,THE SURVEILLANCE GROUP LTD                                  ,BA0000302826,"2,744.76",918530324,BA0000302826,1,H3100,3427,11,
BEIS,The Insolvency Service,07/02/2017,Telecoms,INFORMATION TECHNOLOGY                                                                              ,VODAFONE - CABLE & WIRELESS COMMUNICATIONS,BA0000302852,"4,311.92",232303710,BA0000302852,1,F1100,3416,11,
BEIS,The Insolvency Service,08/02/2017,Agency Workers,FINANCE AND COMMERCIAL                                                                              ,ALLEN LANE LIMITED,BA0000302872,"5,676.97",835970985,BA0000302872,1,C7110,2219,11,
BEIS,The Insolvency Service,08/02/2017,Investigation and Enforcement Costs,INVESTIGATIONS & ENFORCEMENT                                                                        ,B MENELAOU                                                  ,BA0000302866,345.25,,BA0000302866,1,N1700,5004,11,
BEIS,The Insolvency Service,08/02/2017,Agency Workers,P&C - People Relations                                                                              ,BADENOCH & CLARK,BA0000302885,841.86,232347975,BA0000302885,1,C7200,3502,11,
BEIS,The Insolvency Service,08/02/2017,Investigation and Enforcement Costs,INVESTIGATIONS & ENFORCEMENT                                                                        ,BEGBIES TRAYNOR,BA0000302873,"32,875.00",,BA0000302873,1,N1300,3717,11,
BEIS,The Insolvency Service,08/02/2017,Accommodation,ESTATES,BIS - DEPT. FOR BUSINESS INNOVATION & SKILLS,BA0000302864,"2,633.24",888825550,BA0000302864,1,D2200,8210,11,
BEIS,The Insolvency Service,08/02/2017,Accommodation,ESTATES,BIS - DEPT. FOR BUSINESS INNOVATION & SKILLS,BA0000302867,"55,632.33",888825550,BA0000302867,1,D2200,8210,11,
BEIS,The Insolvency Service,08/02/2017,Accommodation,ESTATES,BIS - DEPT. FOR BUSINESS INNOVATION & SKILLS,BA0000302868,"4,119.17",888825550,BA0000302868,1,D2200,8210,11,
BEIS,The Insolvency Service,08/02/2017,Training Costs,P&C - People Relations                                                                              ,BIS - DEPT. FOR BUSINESS INNOVATION & SKILLS,BA0000302876,"11,659.87",888825550,BA0000302876,1,P5200,3502,11,
BEIS,The Insolvency Service,08/02/2017,Agency Workers,PROJECTS                                                                                            ,CAPITA BUSINESS SERVICES LTD,BA0000302875,"4,466.90",618184140,BA0000302875,1,C7110,2231,11,
BEIS,The Insolvency Service,08/02/2017,Accommodation,ESTATES,CBRE LIMITED,BA0000302869,"1,207.50",,BA0000302869,1,D3100,8417,11,
BEIS,The Insolvency Service,08/02/2017,Accommodation,ESTATES,CBRE LIMITED,BA0000302877,"3,739.02",,BA0000302877,1,D3100,8417,11,
BEIS,The Insolvency Service,08/02/2017,Accommodation,ESTATES,CBRE LIMITED,BA0000302881,"1,207.50",,BA0000302881,1,D3100,8417,11,
BEIS,The Insolvency Service,08/02/2017,Accommodation,ESTATES,DEPARTMENT FOR WORK & PENSIONS,BA0000302865,24.65,888815554,BA0000302865,1,D1100,8210,11,
BEIS,The Insolvency Service,08/02/2017,Accommodation,ESTATES,EDF ENERGY,BA0000302871,"1,136.37",523041202,BA0000302871,1,D3100,8613,11,
BEIS,The Insolvency Service,08/02/2017,Employee Related Costs,INFORMATION TECHNOLOGY                                                                              ,HAYS SPECIALIST RECRUITMENT LTD,BA0000302870,"3,600.00",773695871,BA0000302870,1,P1100,3201,11,
BEIS,The Insolvency Service,08/02/2017,Employee Related Costs,P&C - People Relations                                                                              ,HEALTH MANAGEMENT LTD,BA0000302880,"2,171.66",792250621,BA0000302880,1,P4100,3502,11,
BEIS,The Insolvency Service,08/02/2017,Employee Related Costs,P&C - People Relations                                                                              ,HEALTH MANAGEMENT LTD,BA0000302884,"5,544.00",792250621,BA0000302884,1,P4100,3502,11,
BEIS,The Insolvency Service,08/02/2017,Investigation and Enforcement Costs,INVESTIGATIONS & ENFORCEMENT                                                                        ,MD5 LTD                                                     ,BA0000302879,"1,800.00",,BA0000302879,1,N1300,3717,11,
BEIS,The Insolvency Service,08/02/2017,Investigation and Enforcement Costs,INVESTIGATIONS & ENFORCEMENT                                                                        ,MD5 LTD                                                     ,BA0000302882,"1,800.00",,BA0000302882,1,N1300,3717,11,
BEIS,The Insolvency Service,08/02/2017,Investigation and Enforcement Costs,INVESTIGATIONS & ENFORCEMENT                                                                        ,MD5 LTD                                                     ,BA0000302883,-375.00,,BA0000302883,1,N1300,3717,11,
BEIS,The Insolvency Service,08/02/2017,Postage,OFFICIAL RECEIVER SERVICES                                                                          ,ROYAL MAIL GROUP LTD - RESPONSE SERVICES)                   ,BA0000302874,116.76,243170002,BA0000302874,1,F2200,4316,11,
BEIS,The Insolvency Service,08/02/2017,Insolvency Case Related Costs,FINANCE AND COMMERCIAL                                                                              ,SIRS (EUROPE) LTD,BA0000302878,"15,870.00",990834974,BA0000302878,1,H3100,3427,11,
BEIS,The Insolvency Service,08/02/2017,Travel and Subsistence,P&C - Talent                                                                                        ,Staff Payment,BA0000302887,10.98,,BA0000302887,1,G1130                         ,3519,11,
BEIS,The Insolvency Service,08/02/2017,Travel and Subsistence,INVESTIGATIONS & ENFORCEMENT                                                                        ,Staff Payment,BA0000302887,15.99,,BA0000302887,1,G1140                         ,3711,11,
BEIS,The Insolvency Service,08/02/2017,Travel and Subsistence,OFFICIAL RECEIVER SERVICES                                                                          ,Staff Payment,BA0000302887,41.85,,BA0000302887,1,G1140                         ,4612,11,
BEIS,The Insolvency Service,08/02/2017,Travel and Subsistence,BUSINESS SERVICES DIRECTORATE                                                                       ,Staff Payment,BA0000302887,20.00,,BA0000302887,1,G1160                         ,4220,11,
BEIS,The Insolvency Service,08/02/2017,Travel and Subsistence,INVESTIGATIONS & ENFORCEMENT                                                                        ,Staff Payment,BA0000302887,22.59,,BA0000302887,1,G1160                         ,3711,11,
BEIS,The Insolvency Service,08/02/2017,Employee Related Costs,PEOPLE & CAPABILITY                                                                                 ,Staff Payment,BA0000302887,180.00,,BA0000302887,1,P3100                         ,3511,11,
BEIS,The Insolvency Service,08/02/2017,Employee Related Costs,PEOPLE & CAPABILITY                                                                                 ,Staff Payment,BA0000302887,130.00,,BA0000302887,1,P3100                         ,3511,11,
BEIS,The Insolvency Service,08/02/2017,Travel and Subsistence,BUSINESS SERVICES DIRECTORATE                                                                       ,Staff Payment,BA0000302887,8.00,,BA0000302887,1,G1130                         ,3613,11,
BEIS,The Insolvency Service,08/02/2017,Travel and Subsistence,INVESTIGATIONS & ENFORCEMENT                                                                        ,Staff Payment,BA0000302887,56.00,,BA0000302887,1,G1130                         ,3711,11,
BEIS,The Insolvency Service,08/02/2017,Travel and Subsistence,INVESTIGATIONS & ENFORCEMENT                                                                        ,Staff Payment,BA0000302887,40.00,,BA0000302887,1,G1130                         ,3717,11,
BEIS,The Insolvency Service,08/02/2017,Travel and Subsistence,OFFICIAL RECEIVER SERVICES                                                                          ,Staff Payment,BA0000302887,2.50,,BA0000302887,1,G1130                         ,4212,11,
BEIS,The Insolvency Service,08/02/2017,Travel and Subsistence,OFFICIAL RECEIVER SERVICES                                                                          ,Staff Payment,BA0000302887,3.80,,BA0000302887,1,G1130                         ,4611,11,
BEIS,The Insolvency Service,08/02/2017,Travel and Subsistence,OFFICIAL RECEIVER SERVICES                                                                          ,Staff Payment,BA0000302887,3.00,,BA0000302887,1,G1130                         ,4216,11,
BEIS,The Insolvency Service,08/02/2017,Travel and Subsistence,CHIEF EXECUTIVE DIVISION                                                                            ,Staff Payment,BA0000302887,41.40,,BA0000302887,1,G1140                         ,2200,11,
BEIS,The Insolvency Service,08/02/2017,Travel and Subsistence,INVESTIGATIONS & ENFORCEMENT                                                                        ,Staff Payment,BA0000302887,45.00,,BA0000302887,1,G1140                         ,3711,11,
BEIS,The Insolvency Service,08/02/2017,Travel and Subsistence,INVESTIGATIONS & ENFORCEMENT                                                                        ,Staff Payment,BA0000302887,47.70,,BA0000302887,1,G1140                         ,5003,11,
BEIS,The Insolvency Service,08/02/2017,Travel and Subsistence,INVESTIGATIONS & ENFORCEMENT                                                                        ,Staff Payment,BA0000302887,66.00,,BA0000302887,1,G1140                         ,3717,11,
BEIS,The Insolvency Service,08/02/2017,Travel and Subsistence,INVESTIGATIONS & ENFORCEMENT                                                                        ,Staff Payment,BA0000302887,125.10,,BA0000302887,1,G1140                         ,3717,11,
BEIS,The Insolvency Service,08/02/2017,Travel and Subsistence,OFFICIAL RECEIVER SERVICES                                                                          ,Staff Payment,BA0000302887,29.20,,BA0000302887,1,G1140                         ,4212,11,
BEIS,The Insolvency Service,08/02/2017,Travel and Subsistence,OFFICIAL RECEIVER SERVICES                                                                          ,Staff Payment,BA0000302887,3.60,,BA0000302887,1,G1140                         ,4212,11,
BEIS,The Insolvency Service,08/02/2017,Travel and Subsistence,OFFICIAL RECEIVER SERVICES                                                                          ,Staff Payment,BA0000302887,35.55,,BA0000302887,1,G1140                         ,4212,11,
BEIS,The Insolvency Service,08/02/2017,Travel and Subsistence,OFFICIAL RECEIVER SERVICES                                                                          ,Staff Payment,BA0000302887,2.50,,BA0000302887,1,G1140                         ,4212,11,
BEIS,The Insolvency Service,08/02/2017,Travel and Subsistence,OFFICIAL RECEIVER SERVICES                                                                          ,Staff Payment,BA0000302887,47.70,,BA0000302887,1,G1140                         ,4212,11,
BEIS,The Insolvency Service,08/02/2017,Travel and Subsistence,OFFICIAL RECEIVER SERVICES                                                                          ,Staff Payment,BA0000302887,5.50,,BA0000302887,1,G1140                         ,4413,11,
BEIS,The Insolvency Service,08/02/2017,Travel and Subsistence,OFFICIAL RECEIVER SERVICES                                                                          ,Staff Payment,BA0000302887,11.90,,BA0000302887,1,G1140                         ,4212,11,
BEIS,The Insolvency Service,08/02/2017,Travel and Subsistence,OFFICIAL RECEIVER SERVICES                                                                          ,Staff Payment,BA0000302887,242.55,,BA0000302887,1,G1140                         ,4212,11,
BEIS,The Insolvency Service,08/02/2017,Travel and Subsistence,OFFICIAL RECEIVER SERVICES                                                                          ,Staff Payment,BA0000302887,14.40,,BA0000302887,1,G1140                         ,4611,11,
BEIS,The Insolvency Service,08/02/2017,Travel and Subsistence,OFFICIAL RECEIVER SERVICES                                                                          ,Staff Payment,BA0000302887,22.95,,BA0000302887,1,G1140                         ,4611,11,
BEIS,The Insolvency Service,08/02/2017,Travel and Subsistence,OFFICIAL RECEIVER SERVICES                                                                          ,Staff Payment,BA0000302887,12.00,,BA0000302887,1,G1140                         ,4611,11,
BEIS,The Insolvency Service,08/02/2017,Travel and Subsistence,OFFICIAL RECEIVER SERVICES                                                                          ,Staff Payment,BA0000302887,9.45,,BA0000302887,1,G1140                         ,4216,11,
BEIS,The Insolvency Service,08/02/2017,Travel and Subsistence,OFFICIAL RECEIVER SERVICES                                                                          ,Staff Payment,BA0000302887,2.30,,BA0000302887,1,G1140                         ,4216,11,
BEIS,The Insolvency Service,08/02/2017,Travel and Subsistence,OFFICIAL RECEIVER SERVICES                                                                          ,Staff Payment,BA0000302887,11.25,,BA0000302887,1,G1140                         ,4216,11,
BEIS,The Insolvency Service,08/02/2017,Travel and Subsistence,OFFICIAL RECEIVER SERVICES                                                                          ,Staff Payment,BA0000302887,5.40,,BA0000302887,1,G1140                         ,4216,11,
BEIS,The Insolvency Service,08/02/2017,Travel and Subsistence,OFFICIAL RECEIVER SERVICES                                                                          ,Staff Payment,BA0000302887,25.65,,BA0000302887,1,G1140                         ,4514,11,
BEIS,The Insolvency Service,08/02/2017,Travel and Subsistence,BUSINESS SERVICES DIRECTORATE                                                                       ,Staff Payment,BA0000302887,3.20,,BA0000302887,1,G1150                         ,3601,11,
BEIS,The Insolvency Service,08/02/2017,Travel and Subsistence,INVESTIGATIONS & ENFORCEMENT                                                                        ,Staff Payment,BA0000302887,27.30,,BA0000302887,1,G1150                         ,3711,11,
BEIS,The Insolvency Service,08/02/2017,Travel and Subsistence,BUSINESS SERVICES DIRECTORATE                                                                       ,Staff Payment,BA0000302887,5.00,,BA0000302887,1,G1160                         ,2223,11,
BEIS,The Insolvency Service,08/02/2017,Travel and Subsistence,BUSINESS SERVICES DIRECTORATE                                                                       ,Staff Payment,BA0000302887,79.15,,BA0000302887,1,G1160                         ,3613,11,
BEIS,The Insolvency Service,08/02/2017,Travel and Subsistence,BUSINESS SERVICES DIRECTORATE                                                                       ,Staff Payment,BA0000302887,14.99,,BA0000302887,1,G1160                         ,4220,11,
BEIS,The Insolvency Service,08/02/2017,Travel and Subsistence,BUSINESS SERVICES DIRECTORATE                                                                       ,Staff Payment,BA0000302887,19.80,,BA0000302887,1,G1160                         ,4220,11,
BEIS,The Insolvency Service,08/02/2017,Travel and Subsistence,CHIEF EXECUTIVE DIVISION                                                                            ,Staff Payment,BA0000302887,5.00,,BA0000302887,1,G1160                         ,2200,11,
BEIS,The Insolvency Service,08/02/2017,Travel and Subsistence,INVESTIGATIONS & ENFORCEMENT                                                                        ,Staff Payment,BA0000302887,9.45,,BA0000302887,1,G1160                         ,3711,11,
BEIS,The Insolvency Service,08/02/2017,Travel and Subsistence,INVESTIGATIONS & ENFORCEMENT                                                                        ,Staff Payment,BA0000302887,5.00,,BA0000302887,1,G1160                         ,3711,11,
BEIS,The Insolvency Service,08/02/2017,Travel and Subsistence,INVESTIGATIONS & ENFORCEMENT                                                                        ,Staff Payment,BA0000302887,4.85,,BA0000302887,1,G1160                         ,3711,11,
BEIS,The Insolvency Service,08/02/2017,Travel and Subsistence,INVESTIGATIONS & ENFORCEMENT                                                                        ,Staff Payment,BA0000302887,53.13,,BA0000302887,1,G1160                         ,3717,11,
BEIS,The Insolvency Service,08/02/2017,Travel and Subsistence,OFFICIAL RECEIVER SERVICES                                                                          ,Staff Payment,BA0000302887,13.16,,BA0000302887,1,G1160                         ,4212,11,
BEIS,The Insolvency Service,08/02/2017,Travel and Subsistence,OFFICIAL RECEIVER SERVICES                                                                          ,Staff Payment,BA0000302887,3.39,,BA0000302887,1,G1160                         ,4413,11,
BEIS,The Insolvency Service,08/02/2017,Travel and Subsistence,OFFICIAL RECEIVER SERVICES                                                                          ,Staff Payment,BA0000302887,10.00,,BA0000302887,1,G1160                         ,4717,11,
BEIS,The Insolvency Service,08/02/2017,Travel and Subsistence,OFFICIAL RECEIVER SERVICES                                                                          ,Staff Payment,BA0000302887,5.00,,BA0000302887,1,G1160                         ,4717,11,
BEIS,The Insolvency Service,08/02/2017,Travel and Subsistence,OFFICIAL RECEIVER SERVICES                                                                          ,Staff Payment,BA0000302887,25.00,,BA0000302887,1,G1160                         ,4216,11,
BEIS,The Insolvency Service,08/02/2017,Travel and Subsistence,OFFICIAL RECEIVER SERVICES                                                                          ,Staff Payment,BA0000302887,9.55,,BA0000302887,1,G1160                         ,4104,11,
BEIS,The Insolvency Service,08/02/2017,Insolvency Case Related Costs,INVESTIGATIONS & ENFORCEMENT                                                                        ,Staff Payment,BA0000302887,7.00,,BA0000302887,1,H3100                         ,3711,11,
BEIS,The Insolvency Service,08/02/2017,Employee Related Costs,PEOPLE & CAPABILITY                                                                                 ,Staff Payment,BA0000302887,231.00,,BA0000302887,1,P3100                         ,3511,11,
BEIS,The Insolvency Service,08/02/2017,Employee Related Costs,PEOPLE & CAPABILITY                                                                                 ,Staff Payment,BA0000302887,231.00,,BA0000302887,1,P3100                         ,3511,11,
BEIS,The Insolvency Service,08/02/2017,Office Supplies and Services,INVESTIGATIONS & ENFORCEMENT                                                                        ,Staff Payment,BA0000302887,1.50,,BA0000302887,1,R2100                         ,5003,11,
BEIS,The Insolvency Service,08/02/2017,Office Supplies and Services,BUSINESS SERVICES DIRECTORATE                                                                       ,Staff Payment,BA0000302887,10.00,,BA0000302887,1,R3200                         ,3601,11,
BEIS,The Insolvency Service,08/02/2017,Office Supplies and Services,OFFICIAL RECEIVER SERVICES                                                                          ,WILLIAMS LEA LTD,BA0000302886,"2,025.87",662774703,BA0000302886,1,R1100,4310,11,
BEIS,The Insolvency Service,09/02/2017,Office Supplies and Services,BUSINESS SERVICES DIRECTORATE                                                                       ,BANNER BUSINESS SERVICES Ltd.,BA0000302907,250.85,731860439,BA0000302907,1,R2100,4818,11,
BEIS,The Insolvency Service,09/02/2017,Office Supplies and Services,FINANCE AND COMMERCIAL                                                                              ,BANNER BUSINESS SERVICES Ltd.,BA0000302907,841.87,731860439,BA0000302907,1,R2100,3412,11,
BEIS,The Insolvency Service,09/02/2017,Office Supplies and Services,FINANCE AND COMMERCIAL                                                                              ,BANNER BUSINESS SERVICES Ltd.,BA0000302907,"2,489.51",731860439,BA0000302907,1,R2100,3417,11,
BEIS,The Insolvency Service,09/02/2017,Office Supplies and Services,INFORMATION TECHNOLOGY                                                                              ,BANNER BUSINESS SERVICES Ltd.,BA0000302907,34.70,731860439,BA0000302907,1,R2100,3415,11,
BEIS,The Insolvency Service,09/02/2017,Office Supplies and Services,INVESTIGATIONS & ENFORCEMENT                                                                        ,BANNER BUSINESS SERVICES Ltd.,BA0000302907,17.69,731860439,BA0000302907,1,R2100,3711,11,
BEIS,The Insolvency Service,09/02/2017,Office Supplies and Services,OFFICIAL RECEIVER SERVICES                                                                          ,BANNER BUSINESS SERVICES Ltd.,BA0000302907,19.07,731860439,BA0000302907,1,R2100,4814,11,
BEIS,The Insolvency Service,09/02/2017,Office Supplies and Services,OFFICIAL RECEIVER SERVICES                                                                          ,BANNER BUSINESS SERVICES Ltd.,BA0000302907,22.57,731860439,BA0000302907,1,R2100,4515,11,
BEIS,The Insolvency Service,09/02/2017,Office Supplies and Services,OFFICIAL RECEIVER SERVICES                                                                          ,BANNER BUSINESS SERVICES Ltd.,BA0000302907,56.58,731860439,BA0000302907,1,R2100,4713,11,
BEIS,The Insolvency Service,09/02/2017,Office Supplies and Services,OFFICIAL RECEIVER SERVICES                                                                          ,BANNER BUSINESS SERVICES Ltd.,BA0000302907,86.10,731860439,BA0000302907,1,R2100,4812,11,
BEIS,The Insolvency Service,09/02/2017,Office Supplies and Services,OFFICIAL RECEIVER SERVICES                                                                          ,BANNER BUSINESS SERVICES Ltd.,BA0000302907,106.49,731860439,BA0000302907,1,R2100,4716,11,
BEIS,The Insolvency Service,09/02/2017,Office Supplies and Services,OFFICIAL RECEIVER SERVICES                                                                          ,BANNER BUSINESS SERVICES Ltd.,BA0000302907,124.38,731860439,BA0000302907,1,R2100,4717,11,
BEIS,The Insolvency Service,09/02/2017,Office Supplies and Services,OFFICIAL RECEIVER SERVICES                                                                          ,BANNER BUSINESS SERVICES Ltd.,BA0000302907,146.95,731860439,BA0000302907,1,R2100,4214,11,
BEIS,The Insolvency Service,09/02/2017,Office Supplies and Services,OFFICIAL RECEIVER SERVICES                                                                          ,BANNER BUSINESS SERVICES Ltd.,BA0000302907,161.32,731860439,BA0000302907,1,R2100,4613,11,
BEIS,The Insolvency Service,09/02/2017,Office Supplies and Services,OFFICIAL RECEIVER SERVICES                                                                          ,BANNER BUSINESS SERVICES Ltd.,BA0000302907,178.93,731860439,BA0000302907,1,R2100,4811,11,
BEIS,The Insolvency Service,09/02/2017,Office Supplies and Services,OFFICIAL RECEIVER SERVICES                                                                          ,BANNER BUSINESS SERVICES Ltd.,BA0000302907,275.62,731860439,BA0000302907,1,R2100,4413,11,
BEIS,The Insolvency Service,09/02/2017,Office Supplies and Services,OFFICIAL RECEIVER SERVICES                                                                          ,BANNER BUSINESS SERVICES Ltd.,BA0000302907,294.06,731860439,BA0000302907,1,R2100,4612,11,
BEIS,The Insolvency Service,09/02/2017,Office Supplies and Services,OFFICIAL RECEIVER SERVICES                                                                          ,BANNER BUSINESS SERVICES Ltd.,BA0000302907,297.50,731860439,BA0000302907,1,R2100,4511,11,
BEIS,The Insolvency Service,09/02/2017,Office Supplies and Services,OFFICIAL RECEIVER SERVICES                                                                          ,BANNER BUSINESS SERVICES Ltd.,BA0000302907,320.53,731860439,BA0000302907,1,R2100,4514,11,
BEIS,The Insolvency Service,09/02/2017,Office Supplies and Services,OFFICIAL RECEIVER SERVICES                                                                          ,BANNER BUSINESS SERVICES Ltd.,BA0000302907,382.56,731860439,BA0000302907,1,R2100,4715,11,
BEIS,The Insolvency Service,09/02/2017,Office Supplies and Services,OFFICIAL RECEIVER SERVICES                                                                          ,BANNER BUSINESS SERVICES Ltd.,BA0000302907,542.41,731860439,BA0000302907,1,R2100,4611,11,
BEIS,The Insolvency Service,09/02/2017,Agency Workers,INFORMATION TECHNOLOGY                                                                              ,CAPITA BUSINESS SERVICES LTD,BA0000302927,"2,282.46",618184140,BA0000302927,1,C7110,3202,11,
BEIS,The Insolvency Service,09/02/2017,Training Costs,FINANCE AND COMMERCIAL                                                                              ,CAPITA BUSINESS SERVICES LTD,BA0000302906,187.10,618184140,BA0000302906,1,P5200,3420,11,
BEIS,The Insolvency Service,09/02/2017,Training Costs,FINANCE AND COMMERCIAL                                                                              ,CAPITA BUSINESS SERVICES LTD,BA0000302909,-187.10,618184140,BA0000302909,1,P5200,3420,11,
BEIS,The Insolvency Service,09/02/2017,Training Costs,FINANCE AND COMMERCIAL                                                                              ,CAPITA BUSINESS SERVICES LTD,BA0000302910,203.23,618184140,BA0000302910,1,P5200,3420,11,
BEIS,The Insolvency Service,09/02/2017,Training Costs,FINANCE AND COMMERCIAL                                                                              ,CAPITA BUSINESS SERVICES LTD,BA0000302912,-203.23,618184140,BA0000302912,1,P5200,3420,11,
BEIS,The Insolvency Service,09/02/2017,Postage,FINANCE AND COMMERCIAL                                                                              ,CITY SPRINT UK LTD,BA0000302926,6.16,,BA0000302926,1,F2200,3417,11,
BEIS,The Insolvency Service,09/02/2017,Insolvency Case Related Costs,OFFICIAL RECEIVER SERVICES                                                                          ,COMPANIES HOUSE,BA0000302897,5.00,GD255,BA0000302897,1,R3100,4511,11,
BEIS,The Insolvency Service,09/02/2017,Insolvency Case Related Costs,OFFICIAL RECEIVER SERVICES                                                                          ,COMPANIES HOUSE,BA0000302908,4.00,GD255,BA0000302908,1,R3100,4214,11,
BEIS,The Insolvency Service,09/02/2017,Insolvency Case Related Costs,OFFICIAL RECEIVER SERVICES                                                                          ,COMPANIES HOUSE,BA0000302911,4.00,GD255,BA0000302911,1,R3100,4411,11,
BEIS,The Insolvency Service,09/02/2017,Insolvency Case Related Costs,OFFICIAL RECEIVER SERVICES                                                                          ,COMPANIES HOUSE,BA0000302913,4.00,GD255,BA0000302913,1,R3100,4216,11,
BEIS,The Insolvency Service,09/02/2017,Insolvency Case Related Costs,OFFICIAL RECEIVER SERVICES                                                                          ,COMPANIES HOUSE,BA0000302914,4.00,GD255,BA0000302914,1,R3100,4314,11,
BEIS,The Insolvency Service,09/02/2017,Insolvency Case Related Costs,OFFICIAL RECEIVER SERVICES                                                                          ,COMPANIES HOUSE,BA0000302928,4.00,GD255,BA0000302928,1,R3100,4310,11,
BEIS,The Insolvency Service,09/02/2017,Insolvency Case Related Costs,OFFICIAL RECEIVER SERVICES                                                                          ,COMPANIES HOUSE,BA0000302929,4.00,GD255,BA0000302929,1,R3100,4310,11,
BEIS,The Insolvency Service,09/02/2017,Insolvency Case Related Costs,OFFICIAL RECEIVER SERVICES                                                                          ,COMPANIES HOUSE,BA0000302930,4.00,GD255,BA0000302930,1,R3100,4310,11,
BEIS,The Insolvency Service,09/02/2017,Accommodation,ESTATES,CUSHMAN & WAKEFIELD,BA0000302893,"2,743.61",,BA0000302893,1,D7100,8513,11,
BEIS,The Insolvency Service,09/02/2017,Accommodation,ESTATES,DEPARTMENT FOR WORK & PENSIONS,BA0000302894,655.26,888815554,BA0000302894,1,D1100,8210,11,
BEIS,The Insolvency Service,09/02/2017,Training Costs,P&C - People Relations                                                                              ,DODS PARLIMENTARY COMMUNICATIONS LTD,BA0000302895,740.00,792067900,BA0000302895,1,P5200,3502,11,
BEIS,The Insolvency Service,09/02/2017,Legal Costs,OFFICIAL RECEIVER SERVICES                                                                          ,GOVERNMENT LEGAL DEPARTMENT                                 ,BA0000302922,"1,135.20",888823066,BA0000302922,1,K1200,4717,11,
BEIS,The Insolvency Service,09/02/2017,Insolvency Case Related Costs,OFFICIAL RECEIVER SERVICES                                                                          ,INSOLVENCY SERVICE,BA0000302923,100.00,,BA0000302923,1,H3100,4999,11,
BEIS,The Insolvency Service,09/02/2017,Accommodation,ESTATES,JONES LANG LASALLE (CROYDON)                                ,BA0000302896,"18,175.49",,BA0000302896,1,D1100,8716,11,
BEIS,The Insolvency Service,09/02/2017,Investigation and Enforcement Costs,INVESTIGATIONS & ENFORCEMENT                                                                        ,MARSTON GROUP LIMITED                                       ,BA0000302918,198.00,795928947,BA0000302918,1,N1700,5004,11,
BEIS,The Insolvency Service,09/02/2017,Accommodation,ESTATES,MIDDLESBROUGH COUNCIL                                       ,BA0000302921,344.70,734213854,BA0000302921,1,D1100,8210,11,
BEIS,The Insolvency Service,09/02/2017,Office Supplies and Services,OFFICIAL RECEIVER SERVICES                                                                          ,NEOPOST LIMITED (CONSUMABLES),BA0000302915,219.59,597265489,BA0000302915,1,R2100,4611,11,
BEIS,The Insolvency Service,09/02/2017,Postage,BUSINESS SERVICES DIRECTORATE                                                                       ,NEOPOST LTD - FRANKING TOP UPS,BA0000302889,800.00,,BA0000302889,1,F2100,4818,11,
BEIS,The Insolvency Service,09/02/2017,Postage,BUSINESS SERVICES DIRECTORATE                                                                       ,NEOPOST LTD - FRANKING TOP UPS,BA0000302889,"1,000.00",,BA0000302889,1,F2100,4220,11,
BEIS,The Insolvency Service,09/02/2017,Postage,BUSINESS SERVICES DIRECTORATE                                                                       ,NEOPOST LTD - FRANKING TOP UPS,BA0000302890,200.00,,BA0000302890,1,F2100,3431,11,
BEIS,The Insolvency Service,09/02/2017,Postage,BUSINESS SERVICES DIRECTORATE                                                                       ,NEOPOST LTD - FRANKING TOP UPS,BA0000302890,800.00,,BA0000302890,1,F2100,4818,11,
BEIS,The Insolvency Service,09/02/2017,Postage,OFFICIAL RECEIVER SERVICES                                                                          ,NEOPOST LTD - FRANKING TOP UPS,BA0000302889,200.00,,BA0000302889,1,F2100,4813,11,
BEIS,The Insolvency Service,09/02/2017,Postage,OFFICIAL RECEIVER SERVICES                                                                          ,NEOPOST LTD - FRANKING TOP UPS,BA0000302889,500.00,,BA0000302889,1,F2100,4214,11,
BEIS,The Insolvency Service,09/02/2017,Postage,OFFICIAL RECEIVER SERVICES                                                                          ,NEOPOST LTD - FRANKING TOP UPS,BA0000302889,500.00,,BA0000302889,1,F2100,4611,11,
BEIS,The Insolvency Service,09/02/2017,Postage,OFFICIAL RECEIVER SERVICES                                                                          ,NEOPOST LTD - FRANKING TOP UPS,BA0000302889,500.00,,BA0000302889,1,F2100,4715,11,
BEIS,The Insolvency Service,09/02/2017,Postage,OFFICIAL RECEIVER SERVICES                                                                          ,NEOPOST LTD - FRANKING TOP UPS,BA0000302890,500.00,,BA0000302890,1,F2100,4611,11,
BEIS,The Insolvency Service,09/02/2017,Postage,OFFICIAL RECEIVER SERVICES                                                                          ,NEOPOST LTD - FRANKING TOP UPS,BA0000302890,500.00,,BA0000302890,1,F2100,4715,11,
BEIS,The Insolvency Service,09/02/2017,Postage,OFFICIAL RECEIVER SERVICES                                                                          ,NEOPOST LTD - FRANKING TOP UPS,BA0000302890,"1,000.00",,BA0000302890,1,F2100,4511,11,
BEIS,The Insolvency Service,09/02/2017,Postage,OFFICIAL RECEIVER SERVICES                                                                          ,NEOPOST LTD - FRANKING TOP UPS,BA0000302890,"1,000.00",,BA0000302890,1,F2100,4812,11,
BEIS,The Insolvency Service,09/02/2017,Employee Related Costs,OFFICIAL RECEIVER SERVICES                                                                          ,ONLINE ERGONOMICS,BA0000302916,66.00,807348719,BA0000302916,1,P4100,4511,11,
BEIS,The Insolvency Service,09/02/2017,Employee Related Costs,OFFICIAL RECEIVER SERVICES                                                                          ,ONLINE ERGONOMICS,BA0000302916,83.70,807348719,BA0000302916,1,P4100,4511,11,
BEIS,The Insolvency Service,09/02/2017,Employee Related Costs,OFFICIAL RECEIVER SERVICES                                                                          ,ONLINE ERGONOMICS,BA0000302916,97.19,807348719,BA0000302916,1,P4100,4511,11,
BEIS,The Insolvency Service,09/02/2017,Employee Related Costs,OFFICIAL RECEIVER SERVICES                                                                          ,ONLINE ERGONOMICS,BA0000302916,399.90,807348719,BA0000302916,1,P4100,4511,11,
BEIS,The Insolvency Service,09/02/2017,Insolvency Case Related Costs,OFFICIAL RECEIVER SERVICES                                                                          ,ROYAL MAIL (REDIRECTION)                                    ,BA0000302891,"10,500.00",,BA0000302891,1,H3100,4999,11,
BEIS,The Insolvency Service,09/02/2017,Travel and Subsistence,EXTERNAL AFFAIRS                                                                                    ,Staff Payment,BA0000302917,46.88,,BA0000302917,1,G1110                         ,2119,11,
BEIS,The Insolvency Service,09/02/2017,Travel and Subsistence,EXTERNAL AFFAIRS                                                                                    ,Staff Payment,BA0000302917,91.10,,BA0000302917,1,G1130                         ,2119,11,
BEIS,The Insolvency Service,09/02/2017,Travel and Subsistence,EXTERNAL AFFAIRS                                                                                    ,Staff Payment,BA0000302917,21.50,,BA0000302917,1,G1150                         ,2119,11,
BEIS,The Insolvency Service,09/02/2017,Travel and Subsistence,INVESTIGATIONS & ENFORCEMENT                                                                        ,Staff Payment,BA0000302917,18.30,,BA0000302917,1,G1130                         ,5003,11,
BEIS,The Insolvency Service,09/02/2017,Travel and Subsistence,INVESTIGATIONS & ENFORCEMENT                                                                        ,Staff Payment,BA0000302917,4.80,,BA0000302917,1,G1130                         ,5003,11,
BEIS,The Insolvency Service,09/02/2017,Travel and Subsistence,INVESTIGATIONS & ENFORCEMENT                                                                        ,Staff Payment,BA0000302917,29.10,,BA0000302917,1,G1130                         ,3711,11,
BEIS,The Insolvency Service,09/02/2017,Travel and Subsistence,INVESTIGATIONS & ENFORCEMENT                                                                        ,Staff Payment,BA0000302917,11.20,,BA0000302917,1,G1130                         ,3711,11,
BEIS,The Insolvency Service,09/02/2017,Travel and Subsistence,BUSINESS SERVICES DIRECTORATE                                                                       ,Staff Payment,BA0000302917,45.84,,BA0000302917,1,G1140                         ,3613,11,
BEIS,The Insolvency Service,09/02/2017,Travel and Subsistence,INVESTIGATIONS & ENFORCEMENT                                                                        ,Staff Payment,BA0000302917,73.80,,BA0000302917,1,G1140                         ,3711,11,
BEIS,The Insolvency Service,09/02/2017,Travel and Subsistence,INVESTIGATIONS & ENFORCEMENT                                                                        ,Staff Payment,BA0000302917,17.50,,BA0000302917,1,G1140                         ,3316,11,
BEIS,The Insolvency Service,09/02/2017,Travel and Subsistence,INVESTIGATIONS & ENFORCEMENT                                                                        ,Staff Payment,BA0000302917,6.70,,BA0000302917,1,G1140                         ,3717,11,
BEIS,The Insolvency Service,09/02/2017,Travel and Subsistence,INVESTIGATIONS & ENFORCEMENT                                                                        ,Staff Payment,BA0000302917,148.50,,BA0000302917,1,G1140                         ,3717,11,
BEIS,The Insolvency Service,09/02/2017,Travel and Subsistence,INVESTIGATIONS & ENFORCEMENT                                                                        ,Staff Payment,BA0000302917,43.20,,BA0000302917,1,G1140                         ,3711,11,
BEIS,The Insolvency Service,09/02/2017,Travel and Subsistence,INVESTIGATIONS & ENFORCEMENT                                                                        ,Staff Payment,BA0000302917,3.00,,BA0000302917,1,G1140                         ,3711,11,
BEIS,The Insolvency Service,09/02/2017,Travel and Subsistence,INVESTIGATIONS & ENFORCEMENT                                                                        ,Staff Payment,BA0000302917,22.50,,BA0000302917,1,G1140                         ,3711,11,
BEIS,The Insolvency Service,09/02/2017,Travel and Subsistence,OFFICIAL RECEIVER SERVICES                                                                          ,Staff Payment,BA0000302917,90.45,,BA0000302917,1,G1140                         ,4613,11,
BEIS,The Insolvency Service,09/02/2017,Travel and Subsistence,OFFICIAL RECEIVER SERVICES                                                                          ,Staff Payment,BA0000302917,156.60,,BA0000302917,1,G1140                         ,4613,11,
BEIS,The Insolvency Service,09/02/2017,Travel and Subsistence,OFFICIAL RECEIVER SERVICES                                                                          ,Staff Payment,BA0000302917,104.08,,BA0000302917,1,G1140                         ,4413,11,
BEIS,The Insolvency Service,09/02/2017,Travel and Subsistence,OFFICIAL RECEIVER SERVICES                                                                          ,Staff Payment,BA0000302917,12.00,,BA0000302917,1,G1140                         ,4102,11,
BEIS,The Insolvency Service,09/02/2017,Travel and Subsistence,OFFICIAL RECEIVER SERVICES                                                                          ,Staff Payment,BA0000302917,29.25,,BA0000302917,1,G1140                         ,4212,11,
BEIS,The Insolvency Service,09/02/2017,Travel and Subsistence,PEOPLE & CAPABILITY                                                                                 ,Staff Payment,BA0000302917,7.00,,BA0000302917,1,G1140                         ,3516,11,
BEIS,The Insolvency Service,09/02/2017,Travel and Subsistence,PEOPLE & CAPABILITY                                                                                 ,Staff Payment,BA0000302917,5.50,,BA0000302917,1,G1140                         ,3516,11,
BEIS,The Insolvency Service,09/02/2017,Travel and Subsistence,BUSINESS SERVICES DIRECTORATE                                                                       ,Staff Payment,BA0000302917,3.47,,BA0000302917,1,G1160                         ,3613,11,
BEIS,The Insolvency Service,09/02/2017,Travel and Subsistence,INVESTIGATIONS & ENFORCEMENT                                                                        ,Staff Payment,BA0000302917,5.00,,BA0000302917,1,G1160                         ,3711,11,
BEIS,The Insolvency Service,09/02/2017,Travel and Subsistence,INVESTIGATIONS & ENFORCEMENT                                                                        ,Staff Payment,BA0000302917,35.23,,BA0000302917,1,G1160                         ,5003,11,
BEIS,The Insolvency Service,09/02/2017,Travel and Subsistence,INVESTIGATIONS & ENFORCEMENT                                                                        ,Staff Payment,BA0000302917,4.75,,BA0000302917,1,G1160                         ,3316,11,
BEIS,The Insolvency Service,09/02/2017,Travel and Subsistence,INVESTIGATIONS & ENFORCEMENT                                                                        ,Staff Payment,BA0000302917,5.00,,BA0000302917,1,G1160                         ,3711,11,
BEIS,The Insolvency Service,09/02/2017,Travel and Subsistence,INVESTIGATIONS & ENFORCEMENT                                                                        ,Staff Payment,BA0000302917,10.00,,BA0000302917,1,G1160                         ,3717,11,
BEIS,The Insolvency Service,09/02/2017,Travel and Subsistence,OFFICIAL RECEIVER SERVICES                                                                          ,Staff Payment,BA0000302917,9.20,,BA0000302917,1,G1160                         ,4413,11,
BEIS,The Insolvency Service,09/02/2017,Travel and Subsistence,OFFICIAL RECEIVER SERVICES                                                                          ,Staff Payment,BA0000302917,8.40,,BA0000302917,1,G1160                         ,4102,11,
BEIS,The Insolvency Service,09/02/2017,Travel and Subsistence,OFFICIAL RECEIVER SERVICES                                                                          ,Staff Payment,BA0000302917,15.18,,BA0000302917,1,G1160                         ,4413,11,
BEIS,The Insolvency Service,09/02/2017,Travel and Subsistence,PEOPLE & CAPABILITY                                                                                 ,Staff Payment,BA0000302917,63.39,,BA0000302917,1,G1160                         ,3516,11,
BEIS,The Insolvency Service,09/02/2017,Office Supplies and Services,INVESTIGATIONS & ENFORCEMENT                                                                        ,Staff Payment,BA0000302917,13.04,,BA0000302917,1,R2100                         ,3711,11,
BEIS,The Insolvency Service,09/02/2017,Telecoms,BUSINESS SERVICES DIRECTORATE                                                                       ,TIMICO LIMITED                                              ,BA0000302898,"2,405.60",852368804,BA0000302898,1,F1100,3601,11,
BEIS,The Insolvency Service,10/02/2017,Agency Workers,FINANCE AND COMMERCIAL,BROOK STREET (UK) LTD,BA0000302947,"19,069.87",,BA0000302947,1,C7200,3422,11,
BEIS,The Insolvency Service,10/02/2017,Telecoms,INFORMATION TECHNOLOGY                                                                              ,BT TELEPHONE PAYMENT CENTRE,BA0000302945,101.88,245719348,BA0000302945,1,F1100,3416,11,
BEIS,The Insolvency Service,10/02/2017,Insolvency Case Related Costs,OFFICIAL RECEIVER SERVICES                                                                          ,COMPANIES HOUSE,BA0000302946,5.00,GD255,BA0000302946,1,R3100,4613,11,
BEIS,The Insolvency Service,10/02/2017,Agency Workers,INFORMATION TECHNOLOGY                                                                              ,CONCEPT INFORMATION TECHNOLOGY LTD                          ,BA0000302948,780.00,776147892,BA0000302948,1,C7110,3416,11,
BEIS,The Insolvency Service,10/02/2017,Agency Workers,INFORMATION TECHNOLOGY                                                                              ,CONCEPT INFORMATION TECHNOLOGY LTD                          ,BA0000302949,"2,448.00",776147892,BA0000302949,1,C7110,3202,11,
BEIS,The Insolvency Service,10/02/2017,Agency Workers,INFORMATION TECHNOLOGY                                                                              ,CONCEPT INFORMATION TECHNOLOGY LTD                          ,BA0000302950,780.00,776147892,BA0000302950,1,C7110,3416,11,
BEIS,The Insolvency Service,10/02/2017,Legal Costs,BUSINESS SERVICES DIRECTORATE                                                                       ,GOVERNMENT LEGAL DEPARTMENT                                 ,BA0000302941,315.72,888823066,BA0000302941,1,K1200,2114,11,
BEIS,The Insolvency Service,10/02/2017,Travel and Subsistence,OFFICIAL RECEIVER SERVICES                                                                          ,Staff Payment,BA0000302952,18.00,,BA0000302952,1,G1140                         ,4511,11,
BEIS,The Insolvency Service,10/02/2017,Travel and Subsistence,BUSINESS SERVICES DIRECTORATE                                                                       ,Staff Payment,BA0000302952,20.00,,BA0000302952,1,G1160                         ,4220,11,
BEIS,The Insolvency Service,10/02/2017,Travel and Subsistence,FINANCE AND COMMERCIAL,Staff Payment,BA0000302952,46.34,,BA0000302952,1,G1160                         ,3521,11,
BEIS,The Insolvency Service,10/02/2017,Travel and Subsistence,BUSINESS SERVICES DIRECTORATE                                                                       ,Staff Payment,BA0000302952,12.00,,BA0000302952,1,G1140                         ,4220,11,
BEIS,The Insolvency Service,10/02/2017,Travel and Subsistence,BUSINESS SERVICES DIRECTORATE                                                                       ,Staff Payment,BA0000302952,3.34,,BA0000302952,1,G1140                         ,4220,11,
BEIS,The Insolvency Service,10/02/2017,Travel and Subsistence,BUSINESS SERVICES DIRECTORATE                                                                       ,Staff Payment,BA0000302952,76.50,,BA0000302952,1,G1140                         ,4220,11,
BEIS,The Insolvency Service,10/02/2017,Travel and Subsistence,BUSINESS SERVICES DIRECTORATE                                                                       ,Staff Payment,BA0000302952,149.40,,BA0000302952,1,G1140                         ,3613,11,
BEIS,The Insolvency Service,10/02/2017,Travel and Subsistence,OFFICIAL RECEIVER SERVICES                                                                          ,Staff Payment,BA0000302952,40.50,,BA0000302952,1,G1140                         ,4814,11,
BEIS,The Insolvency Service,10/02/2017,Travel and Subsistence,OFFICIAL RECEIVER SERVICES                                                                          ,Staff Payment,BA0000302952,2.00,,BA0000302952,1,G1140                         ,4812,11,
BEIS,The Insolvency Service,10/02/2017,Travel and Subsistence,OFFICIAL RECEIVER SERVICES                                                                          ,Staff Payment,BA0000302952,14.85,,BA0000302952,1,G1140                         ,4812,11,
BEIS,The Insolvency Service,10/02/2017,Travel and Subsistence,OFFICIAL RECEIVER SERVICES                                                                          ,Staff Payment,BA0000302952,8.00,,BA0000302952,1,G1140                         ,4812,11,
BEIS,The Insolvency Service,10/02/2017,Travel and Subsistence,OFFICIAL RECEIVER SERVICES                                                                          ,Staff Payment,BA0000302952,11.70,,BA0000302952,1,G1140                         ,4812,11,
BEIS,The Insolvency Service,10/02/2017,Travel and Subsistence,OFFICIAL RECEIVER SERVICES                                                                          ,Staff Payment,BA0000302952,1.50,,BA0000302952,1,G1140                         ,4812,11,
BEIS,The Insolvency Service,10/02/2017,Travel and Subsistence,OFFICIAL RECEIVER SERVICES                                                                          ,Staff Payment,BA0000302952,14.85,,BA0000302952,1,G1140                         ,4812,11,
BEIS,The Insolvency Service,10/02/2017,Travel and Subsistence,OFFICIAL RECEIVER SERVICES                                                                          ,Staff Payment,BA0000302952,40.50,,BA0000302952,1,G1140                         ,4814,11,
BEIS,The Insolvency Service,10/02/2017,Travel and Subsistence,OFFICIAL RECEIVER SERVICES                                                                          ,Staff Payment,BA0000302952,45.00,,BA0000302952,1,G1140                         ,4812,11,
BEIS,The Insolvency Service,10/02/2017,Travel and Subsistence,OFFICIAL RECEIVER SERVICES                                                                          ,Staff Payment,BA0000302952,51.75,,BA0000302952,1,G1140                         ,4812,11,
BEIS,The Insolvency Service,10/02/2017,Travel and Subsistence,OFFICIAL RECEIVER SERVICES                                                                          ,Staff Payment,BA0000302952,39.15,,BA0000302952,1,G1140                         ,4812,11,
BEIS,The Insolvency Service,10/02/2017,Travel and Subsistence,OFFICIAL RECEIVER SERVICES                                                                          ,Staff Payment,BA0000302952,15.10,,BA0000302952,1,G1150                         ,4812,11,
BEIS,The Insolvency Service,10/02/2017,Travel and Subsistence,BUSINESS SERVICES DIRECTORATE                                                                       ,Staff Payment,BA0000302952,12.95,,BA0000302952,1,G1160                         ,4818,11,
BEIS,The Insolvency Service,10/02/2017,Travel and Subsistence,BUSINESS SERVICES DIRECTORATE                                                                       ,Staff Payment,BA0000302952,29.49,,BA0000302952,1,G1160                         ,4220,11,
BEIS,The Insolvency Service,10/02/2017,Travel and Subsistence,BUSINESS SERVICES DIRECTORATE                                                                       ,Staff Payment,BA0000302952,19.99,,BA0000302952,1,G1160                         ,4220,11,
BEIS,The Insolvency Service,10/02/2017,Travel and Subsistence,OFFICIAL RECEIVER SERVICES                                                                          ,Staff Payment,BA0000302952,21.78,,BA0000302952,1,G1160                         ,4812,11,
BEIS,The Insolvency Service,10/02/2017,Travel and Subsistence,OFFICIAL RECEIVER SERVICES                                                                          ,Staff Payment,BA0000302952,2.45,,BA0000302952,1,G1160                         ,4812,11,
BEIS,The Insolvency Service,10/02/2017,Travel and Subsistence,OFFICIAL RECEIVER SERVICES                                                                          ,Staff Payment,BA0000302952,5.00,,BA0000302952,1,G1160                         ,4812,11,
BEIS,The Insolvency Service,10/02/2017,Travel and Subsistence,OFFICIAL RECEIVER SERVICES                                                                          ,Staff Payment,BA0000302952,5.00,,BA0000302952,1,G1160                         ,4812,11,
BEIS,The Insolvency Service,10/02/2017,Travel and Subsistence,OFFICIAL RECEIVER SERVICES                                                                          ,Staff Payment,BA0000302952,5.00,,BA0000302952,1,G1160                         ,4812,11,
BEIS,The Insolvency Service,10/02/2017,Employee Related Costs,OFFICIAL RECEIVER SERVICES                                                                          ,Staff Payment,BA0000302952,2.90,,BA0000302952,1,P2100                         ,4812,11,
BEIS,The Insolvency Service,13/02/2017,Training Costs,PEOPLE & CAPABILITY                                                                                 ,ASHRIDGE EXECUTIVE EDUCATION                                ,BA0000302986,"4,720.00",,BA0000302986,1,P5200,3516,11,
BEIS,The Insolvency Service,13/02/2017,Telecoms,ESTATES,BT CONFERENCING SERVICES,BA0000302954,7.22,245719348,BA0000302954,1,F1100,3411,11,
BEIS,The Insolvency Service,13/02/2017,Computer and IT Systems,OFFICIAL RECEIVER SERVICES                                                                          ,BT TELEPHONE PAYMENT CENTRE,BA0000302979,161.08,245719348,BA0000302979,1,E8110,4314,11,
BEIS,The Insolvency Service,13/02/2017,Accommodation,ESTATES,CBRE LIMITED,BA0000302969,"3,845.94",,BA0000302969,1,D3100,8417,11,
BEIS,The Insolvency Service,13/02/2017,Postage,OFFICIAL RECEIVER SERVICES                                                                          ,CITY SPRINT UK LTD,BA0000302966,15.72,,BA0000302966,1,F2200,4315,11,
BEIS,The Insolvency Service,13/02/2017,Postage,OFFICIAL RECEIVER SERVICES                                                                          ,CITY SPRINT UK LTD,BA0000302978,36.40,,BA0000302978,1,F2200,4315,11,
BEIS,The Insolvency Service,13/02/2017,Accommodation,ESTATES,COMPANIES HOUSE,BA0000302983,"26,186.08",GD255,BA0000302983,1,D1100,8812,11,
BEIS,The Insolvency Service,13/02/2017,Insolvency Case Related Costs,OFFICIAL RECEIVER SERVICES                                                                          ,COMPANIES HOUSE,BA0000302987,4.00,GD255,BA0000302987,1,R3100,4715,11,
BEIS,The Insolvency Service,13/02/2017,Employee Related Costs,PEOPLE & CAPABILITY                                                                                 ,DISCLOSURE SCOTLAND,BA0000302975,175.00,,BA0000302975,1,P1200,3511,11,
BEIS,The Insolvency Service,13/02/2017,Employee Related Costs,PEOPLE & CAPABILITY                                                                                 ,DISCLOSURE SCOTLAND,BA0000302976,25.00,,BA0000302976,1,P1200,3511,11,
BEIS,The Insolvency Service,13/02/2017,Postage,INFORMATION TECHNOLOGY                                                                              ,DX NETWORK SERVICES LTD,BA0000302981,222.71,849741385,BA0000302981,1,F2200,3415,11,
BEIS,The Insolvency Service,13/02/2017,Postage,OFFICIAL RECEIVER SERVICES                                                                          ,DX NETWORK SERVICES LTD,BA0000302981,103.42,849741385,BA0000302981,1,F2200,4717,11,
BEIS,The Insolvency Service,13/02/2017,Postage,OFFICIAL RECEIVER SERVICES                                                                          ,DX NETWORK SERVICES LTD,BA0000302981,121.88,849741385,BA0000302981,1,F2200,4613,11,
BEIS,The Insolvency Service,13/02/2017,Postage,OFFICIAL RECEIVER SERVICES                                                                          ,DX NETWORK SERVICES LTD,BA0000302981,127.17,849741385,BA0000302981,1,F2200,4715,11,
BEIS,The Insolvency Service,13/02/2017,Postage,OFFICIAL RECEIVER SERVICES                                                                          ,DX NETWORK SERVICES LTD,BA0000302981,189.17,849741385,BA0000302981,1,F2200,4716,11,
BEIS,The Insolvency Service,13/02/2017,Postage,OFFICIAL RECEIVER SERVICES                                                                          ,DX NETWORK SERVICES LTD,BA0000302981,215.25,849741385,BA0000302981,1,F2200,4212,11,
BEIS,The Insolvency Service,13/02/2017,Postage,OFFICIAL RECEIVER SERVICES                                                                          ,DX NETWORK SERVICES LTD,BA0000302981,234.43,849741385,BA0000302981,1,F2200,4413,11,
BEIS,The Insolvency Service,13/02/2017,Postage,OFFICIAL RECEIVER SERVICES                                                                          ,DX NETWORK SERVICES LTD,BA0000302981,246.56,849741385,BA0000302981,1,F2200,4514,11,
BEIS,The Insolvency Service,13/02/2017,Postage,OFFICIAL RECEIVER SERVICES                                                                          ,DX NETWORK SERVICES LTD,BA0000302981,250.50,849741385,BA0000302981,1,F2200,4216,11,
BEIS,The Insolvency Service,13/02/2017,Postage,OFFICIAL RECEIVER SERVICES                                                                          ,DX NETWORK SERVICES LTD,BA0000302981,251.62,849741385,BA0000302981,1,F2200,4511,11,
BEIS,The Insolvency Service,13/02/2017,Postage,OFFICIAL RECEIVER SERVICES                                                                          ,DX NETWORK SERVICES LTD,BA0000302981,286.69,849741385,BA0000302981,1,F2200,4713,11,
BEIS,The Insolvency Service,13/02/2017,Postage,OFFICIAL RECEIVER SERVICES                                                                          ,DX NETWORK SERVICES LTD,BA0000302981,312.12,849741385,BA0000302981,1,F2200,4812,11,
BEIS,The Insolvency Service,13/02/2017,Postage,OFFICIAL RECEIVER SERVICES                                                                          ,DX NETWORK SERVICES LTD,BA0000302981,319.87,849741385,BA0000302981,1,F2200,4813,11,
BEIS,The Insolvency Service,13/02/2017,Postage,OFFICIAL RECEIVER SERVICES                                                                          ,DX NETWORK SERVICES LTD,BA0000302981,367.25,849741385,BA0000302981,1,F2200,4611,11,
BEIS,The Insolvency Service,13/02/2017,Postage,OFFICIAL RECEIVER SERVICES                                                                          ,DX NETWORK SERVICES LTD,BA0000302981,554.61,849741385,BA0000302981,1,F2200,4316,11,
BEIS,The Insolvency Service,13/02/2017,Postage,OFFICIAL RECEIVER SERVICES                                                                          ,DX NETWORK SERVICES LTD,BA0000302981,870.99,849741385,BA0000302981,1,F2200,4214,11,
BEIS,The Insolvency Service,13/02/2017,Telecoms,BUSINESS SERVICES DIRECTORATE                                                                       ,GAMMA BUSINESS COMMUNICATIONS LTD,BA0000302982,6.00,823820344,BA0000302982,1,F1100,3614,11,
BEIS,The Insolvency Service,13/02/2017,Telecoms,BUSINESS SERVICES DIRECTORATE                                                                       ,GAMMA BUSINESS COMMUNICATIONS LTD,BA0000302982,124.17,823820344,BA0000302982,1,F1100,3614,11,
BEIS,The Insolvency Service,13/02/2017,Telecoms,FINANCE AND COMMERCIAL                                                                              ,GAMMA BUSINESS COMMUNICATIONS LTD,BA0000302982,6.00,823820344,BA0000302982,1,F1100,3419,11,
BEIS,The Insolvency Service,13/02/2017,Telecoms,FINANCE AND COMMERCIAL                                                                              ,GAMMA BUSINESS COMMUNICATIONS LTD,BA0000302982,710.52,823820344,BA0000302982,1,F1100,3419,11,
BEIS,The Insolvency Service,13/02/2017,Telecoms,INFORMATION TECHNOLOGY                                                                              ,GAMMA BUSINESS COMMUNICATIONS LTD,BA0000302982,12.00,823820344,BA0000302982,1,F1100,3416,11,
BEIS,The Insolvency Service,13/02/2017,Telecoms,INFORMATION TECHNOLOGY                                                                              ,GAMMA BUSINESS COMMUNICATIONS LTD,BA0000302982,187.30,823820344,BA0000302982,1,F1100,3416,11,
BEIS,The Insolvency Service,13/02/2017,Telecoms,OFFICIAL RECEIVER SERVICES                                                                          ,GAMMA BUSINESS COMMUNICATIONS LTD,BA0000302982,6.00,823820344,BA0000302982,1,F1100,4212,11,
BEIS,The Insolvency Service,13/02/2017,Telecoms,OFFICIAL RECEIVER SERVICES                                                                          ,GAMMA BUSINESS COMMUNICATIONS LTD,BA0000302982,6.00,823820344,BA0000302982,1,F1100,4214,11,
BEIS,The Insolvency Service,13/02/2017,Telecoms,OFFICIAL RECEIVER SERVICES                                                                          ,GAMMA BUSINESS COMMUNICATIONS LTD,BA0000302982,6.00,823820344,BA0000302982,1,F1100,4413,11,
BEIS,The Insolvency Service,13/02/2017,Telecoms,OFFICIAL RECEIVER SERVICES                                                                          ,GAMMA BUSINESS COMMUNICATIONS LTD,BA0000302982,6.00,823820344,BA0000302982,1,F1100,4715,11,
BEIS,The Insolvency Service,13/02/2017,Telecoms,OFFICIAL RECEIVER SERVICES                                                                          ,GAMMA BUSINESS COMMUNICATIONS LTD,BA0000302982,6.00,823820344,BA0000302982,1,F1100,4716,11,
BEIS,The Insolvency Service,13/02/2017,Telecoms,OFFICIAL RECEIVER SERVICES                                                                          ,GAMMA BUSINESS COMMUNICATIONS LTD,BA0000302982,6.00,823820344,BA0000302982,1,F1100,4717,11,
BEIS,The Insolvency Service,13/02/2017,Telecoms,OFFICIAL RECEIVER SERVICES                                                                          ,GAMMA BUSINESS COMMUNICATIONS LTD,BA0000302982,6.00,823820344,BA0000302982,1,F1100,4814,11,
BEIS,The Insolvency Service,13/02/2017,Telecoms,OFFICIAL RECEIVER SERVICES                                                                          ,GAMMA BUSINESS COMMUNICATIONS LTD,BA0000302982,15.24,823820344,BA0000302982,1,F1100,4613,11,
BEIS,The Insolvency Service,13/02/2017,Telecoms,OFFICIAL RECEIVER SERVICES                                                                          ,GAMMA BUSINESS COMMUNICATIONS LTD,BA0000302982,63.22,823820344,BA0000302982,1,F1100,4713,11,
BEIS,The Insolvency Service,13/02/2017,Telecoms,OFFICIAL RECEIVER SERVICES                                                                          ,GAMMA BUSINESS COMMUNICATIONS LTD,BA0000302982,85.81,823820344,BA0000302982,1,F1100,4716,11,
BEIS,The Insolvency Service,13/02/2017,Telecoms,OFFICIAL RECEIVER SERVICES                                                                          ,GAMMA BUSINESS COMMUNICATIONS LTD,BA0000302982,98.05,823820344,BA0000302982,1,F1100,4212,11,
BEIS,The Insolvency Service,13/02/2017,Telecoms,OFFICIAL RECEIVER SERVICES                                                                          ,GAMMA BUSINESS COMMUNICATIONS LTD,BA0000302982,106.62,823820344,BA0000302982,1,F1100,4814,11,
BEIS,The Insolvency Service,13/02/2017,Telecoms,OFFICIAL RECEIVER SERVICES                                                                          ,GAMMA BUSINESS COMMUNICATIONS LTD,BA0000302982,142.67,823820344,BA0000302982,1,F1100,4715,11,
BEIS,The Insolvency Service,13/02/2017,Telecoms,OFFICIAL RECEIVER SERVICES                                                                          ,GAMMA BUSINESS COMMUNICATIONS LTD,BA0000302982,163.88,823820344,BA0000302982,1,F1100,4717,11,
BEIS,The Insolvency Service,13/02/2017,Telecoms,OFFICIAL RECEIVER SERVICES                                                                          ,GAMMA BUSINESS COMMUNICATIONS LTD,BA0000302982,173.11,823820344,BA0000302982,1,F1100,4613,11,
BEIS,The Insolvency Service,13/02/2017,Telecoms,OFFICIAL RECEIVER SERVICES                                                                          ,GAMMA BUSINESS COMMUNICATIONS LTD,BA0000302982,179.03,823820344,BA0000302982,1,F1100,4214,11,
BEIS,The Insolvency Service,13/02/2017,Telecoms,OFFICIAL RECEIVER SERVICES                                                                          ,GAMMA BUSINESS COMMUNICATIONS LTD,BA0000302982,304.99,823820344,BA0000302982,1,F1100,4413,11,
BEIS,The Insolvency Service,13/02/2017,Telecoms,OFFICIAL RECEIVER SERVICES                                                                          ,GAMMA BUSINESS COMMUNICATIONS LTD,BA0000302982,523.87,823820344,BA0000302982,1,F1100,4511,11,
BEIS,The Insolvency Service,13/02/2017,Insolvency Case Related Costs,OFFICIAL RECEIVER SERVICES                                                                          ,HPI LTD,BA0000302980,36.77,942407139,BA0000302980,1,H3100,4716,11,
BEIS,The Insolvency Service,13/02/2017,Postage,BUSINESS SERVICES DIRECTORATE                                                                       ,NATIONAL RECORD OF SCOTLAND,BA0000302967,"2,399.91",888842061,BA0000302967,1,F2100,3614,11,
BEIS,The Insolvency Service,13/02/2017,Travel and Subsistence,INVESTIGATIONS & ENFORCEMENT                                                                        ,Staff Payment,BA0000302984,47.70,,BA0000302984,1,G1110                         ,3711,11,
BEIS,The Insolvency Service,13/02/2017,Travel and Subsistence,CUSTOMER AND COMMUNICATIONS                                                                         ,Staff Payment,BA0000302984,36.30,,BA0000302984,1,G1130                         ,3101,11,
BEIS,The Insolvency Service,13/02/2017,Travel and Subsistence,INVESTIGATIONS & ENFORCEMENT                                                                        ,Staff Payment,BA0000302984,15.99,,BA0000302984,1,G1140                         ,3711,11,
BEIS,The Insolvency Service,13/02/2017,Travel and Subsistence,PEOPLE & CAPABILITY                                                                                 ,Staff Payment,BA0000302984,24.00,,BA0000302984,1,G1150                         ,3501,11,
BEIS,The Insolvency Service,13/02/2017,Travel and Subsistence,CUSTOMER AND COMMUNICATIONS                                                                         ,Staff Payment,BA0000302984,183.50,,BA0000302984,1,G1160                         ,3101,11,
BEIS,The Insolvency Service,13/02/2017,Travel and Subsistence,INVESTIGATIONS & ENFORCEMENT                                                                        ,Staff Payment,BA0000302984,23.60,,BA0000302984,1,G1160                         ,3711,11,
BEIS,The Insolvency Service,13/02/2017,Travel and Subsistence,PEOPLE & CAPABILITY                                                                                 ,Staff Payment,BA0000302984,15.00,,BA0000302984,1,G1160                         ,3501,11,
BEIS,The Insolvency Service,13/02/2017,Employee Related Costs,FINANCE AND COMMERCIAL                                                                              ,Staff Payment,BA0000302984,180.00,,BA0000302984,1,P3100                         ,3209,11,
BEIS,The Insolvency Service,13/02/2017,Training Costs,FINANCE AND COMMERCIAL,Staff Payment,BA0000302984,204.00,,BA0000302984,1,P5200                         ,3521,11,
BEIS,The Insolvency Service,13/02/2017,Telecoms,INVESTIGATIONS & ENFORCEMENT                                                                        ,Staff Payment,BA0000302984,61.08,,BA0000302984,1,F1100                         ,3316,11,
BEIS,The Insolvency Service,13/02/2017,Travel and Subsistence,BUSINESS SERVICES DIRECTORATE                                                                       ,Staff Payment,BA0000302984,3.20,,BA0000302984,1,G1130                         ,3612,11,
BEIS,The Insolvency Service,13/02/2017,Travel and Subsistence,EXTERNAL AFFAIRS                                                                                    ,Staff Payment,BA0000302984,66.40,,BA0000302984,1,G1130                         ,2111,11,
BEIS,The Insolvency Service,13/02/2017,Travel and Subsistence,INVESTIGATIONS & ENFORCEMENT                                                                        ,Staff Payment,BA0000302984,3.20,,BA0000302984,1,G1130                         ,3711,11,
BEIS,The Insolvency Service,13/02/2017,Travel and Subsistence,INVESTIGATIONS & ENFORCEMENT                                                                        ,Staff Payment,BA0000302984,11.60,,BA0000302984,1,G1130                         ,3711,11,
BEIS,The Insolvency Service,13/02/2017,Travel and Subsistence,INVESTIGATIONS & ENFORCEMENT                                                                        ,Staff Payment,BA0000302984,4.80,,BA0000302984,1,G1130                         ,5003,11,
BEIS,The Insolvency Service,13/02/2017,Travel and Subsistence,INVESTIGATIONS & ENFORCEMENT                                                                        ,Staff Payment,BA0000302984,4.80,,BA0000302984,1,G1130                         ,5003,11,
BEIS,The Insolvency Service,13/02/2017,Travel and Subsistence,BUSINESS SERVICES DIRECTORATE                                                                       ,Staff Payment,BA0000302984,5.50,,BA0000302984,1,G1140                         ,3613,11,
BEIS,The Insolvency Service,13/02/2017,Travel and Subsistence,BUSINESS SERVICES DIRECTORATE                                                                       ,Staff Payment,BA0000302984,48.00,,BA0000302984,1,G1140                         ,3613,11,
BEIS,The Insolvency Service,13/02/2017,Travel and Subsistence,BUSINESS SERVICES DIRECTORATE                                                                       ,Staff Payment,BA0000302984,15.75,,BA0000302984,1,G1140                         ,3612,11,
BEIS,The Insolvency Service,13/02/2017,Travel and Subsistence,BUSINESS SERVICES DIRECTORATE                                                                       ,Staff Payment,BA0000302984,39.00,,BA0000302984,1,G1140                         ,3612,11,
BEIS,The Insolvency Service,13/02/2017,Travel and Subsistence,INVESTIGATIONS & ENFORCEMENT                                                                        ,Staff Payment,BA0000302984,5.80,,BA0000302984,1,G1140                         ,3316,11,
BEIS,The Insolvency Service,13/02/2017,Travel and Subsistence,INVESTIGATIONS & ENFORCEMENT                                                                        ,Staff Payment,BA0000302984,6.60,,BA0000302984,1,G1140                         ,3316,11,
BEIS,The Insolvency Service,13/02/2017,Travel and Subsistence,INVESTIGATIONS & ENFORCEMENT                                                                        ,Staff Payment,BA0000302984,37.00,,BA0000302984,1,G1140                         ,3711,11,
BEIS,The Insolvency Service,13/02/2017,Travel and Subsistence,INVESTIGATIONS & ENFORCEMENT                                                                        ,Staff Payment,BA0000302984,24.00,,BA0000302984,1,G1140                         ,3321,11,
BEIS,The Insolvency Service,13/02/2017,Travel and Subsistence,INVESTIGATIONS & ENFORCEMENT                                                                        ,Staff Payment,BA0000302984,37.80,,BA0000302984,1,G1140                         ,3321,11,
BEIS,The Insolvency Service,13/02/2017,Travel and Subsistence,OFFICIAL RECEIVER SERVICES                                                                          ,Staff Payment,BA0000302984,23.85,,BA0000302984,1,G1140                         ,4713,11,
BEIS,The Insolvency Service,13/02/2017,Travel and Subsistence,OFFICIAL RECEIVER SERVICES                                                                          ,Staff Payment,BA0000302984,3.00,,BA0000302984,1,G1140                         ,4315,11,
BEIS,The Insolvency Service,13/02/2017,Travel and Subsistence,OFFICIAL RECEIVER SERVICES                                                                          ,Staff Payment,BA0000302984,24.00,,BA0000302984,1,G1140                         ,4315,11,
BEIS,The Insolvency Service,13/02/2017,Travel and Subsistence,OFFICIAL RECEIVER SERVICES                                                                          ,Staff Payment,BA0000302984,81.00,,BA0000302984,1,G1140                         ,4315,11,
BEIS,The Insolvency Service,13/02/2017,Travel and Subsistence,OFFICIAL RECEIVER SERVICES                                                                          ,Staff Payment,BA0000302984,3.40,,BA0000302984,1,G1140                         ,4612,11,
BEIS,The Insolvency Service,13/02/2017,Travel and Subsistence,OFFICIAL RECEIVER SERVICES                                                                          ,Staff Payment,BA0000302984,67.05,,BA0000302984,1,G1140                         ,4612,11,
BEIS,The Insolvency Service,13/02/2017,Travel and Subsistence,OFFICIAL RECEIVER SERVICES                                                                          ,Staff Payment,BA0000302984,167.40,,BA0000302984,1,G1140                         ,4612,11,
BEIS,The Insolvency Service,13/02/2017,Travel and Subsistence,OFFICIAL RECEIVER SERVICES                                                                          ,Staff Payment,BA0000302984,37.80,,BA0000302984,1,G1140                         ,4315,11,
BEIS,The Insolvency Service,13/02/2017,Travel and Subsistence,PEOPLE & CAPABILITY                                                                                 ,Staff Payment,BA0000302984,18.00,,BA0000302984,1,G1140                         ,3501,11,
BEIS,The Insolvency Service,13/02/2017,Travel and Subsistence,PEOPLE & CAPABILITY                                                                                 ,Staff Payment,BA0000302984,103.50,,BA0000302984,1,G1140                         ,3501,11,
BEIS,The Insolvency Service,13/02/2017,Travel and Subsistence,PEOPLE & CAPABILITY                                                                                 ,Staff Payment,BA0000302984,51.30,,BA0000302984,1,G1140                         ,3516,11,
BEIS,The Insolvency Service,13/02/2017,Travel and Subsistence,PEOPLE & CAPABILITY                                                                                 ,Staff Payment,BA0000302984,25.65,,BA0000302984,1,G1140                         ,3516,11,
BEIS,The Insolvency Service,13/02/2017,Travel and Subsistence,PEOPLE & CAPABILITY                                                                                 ,Staff Payment,BA0000302984,25.65,,BA0000302984,1,G1140                         ,3516,11,
BEIS,The Insolvency Service,13/02/2017,Travel and Subsistence,INVESTIGATIONS & ENFORCEMENT                                                                        ,Staff Payment,BA0000302984,13.00,,BA0000302984,1,G1150                         ,3316,11,
BEIS,The Insolvency Service,13/02/2017,Travel and Subsistence,INVESTIGATIONS & ENFORCEMENT                                                                        ,Staff Payment,BA0000302984,24.00,,BA0000302984,1,G1150                         ,3316,11,
BEIS,The Insolvency Service,13/02/2017,Travel and Subsistence,OFFICIAL RECEIVER SERVICES                                                                          ,Staff Payment,BA0000302984,17.40,,BA0000302984,1,G1150                         ,4811,11,
BEIS,The Insolvency Service,13/02/2017,Travel and Subsistence,BUSINESS SERVICES DIRECTORATE                                                                       ,Staff Payment,BA0000302984,73.11,,BA0000302984,1,G1160                         ,3612,11,
BEIS,The Insolvency Service,13/02/2017,Travel and Subsistence,BUSINESS SERVICES DIRECTORATE                                                                       ,Staff Payment,BA0000302984,4.30,,BA0000302984,1,G1160                         ,3613,11,
BEIS,The Insolvency Service,13/02/2017,Travel and Subsistence,BUSINESS SERVICES DIRECTORATE                                                                       ,Staff Payment,BA0000302984,5.00,,BA0000302984,1,G1160                         ,3613,11,
BEIS,The Insolvency Service,13/02/2017,Travel and Subsistence,BUSINESS SERVICES DIRECTORATE                                                                       ,Staff Payment,BA0000302984,6.89,,BA0000302984,1,G1160                         ,3612,11,
BEIS,The Insolvency Service,13/02/2017,Travel and Subsistence,EXTERNAL AFFAIRS                                                                                    ,Staff Payment,BA0000302984,130.36,,BA0000302984,1,G1160                         ,2111,11,
BEIS,The Insolvency Service,13/02/2017,Travel and Subsistence,INVESTIGATIONS & ENFORCEMENT                                                                        ,Staff Payment,BA0000302984,4.30,,BA0000302984,1,G1160                         ,3711,11,
BEIS,The Insolvency Service,13/02/2017,Travel and Subsistence,INVESTIGATIONS & ENFORCEMENT                                                                        ,Staff Payment,BA0000302984,15.00,,BA0000302984,1,G1160                         ,3316,11,
BEIS,The Insolvency Service,13/02/2017,Travel and Subsistence,INVESTIGATIONS & ENFORCEMENT                                                                        ,Staff Payment,BA0000302984,37.35,,BA0000302984,1,G1160                         ,3711,11,
BEIS,The Insolvency Service,13/02/2017,Travel and Subsistence,INVESTIGATIONS & ENFORCEMENT                                                                        ,Staff Payment,BA0000302984,3.20,,BA0000302984,1,G1160                         ,3711,11,
BEIS,The Insolvency Service,13/02/2017,Travel and Subsistence,OFFICIAL RECEIVER SERVICES                                                                          ,Staff Payment,BA0000302984,3.30,,BA0000302984,1,G1160                         ,4315,11,
BEIS,The Insolvency Service,13/02/2017,Travel and Subsistence,OFFICIAL RECEIVER SERVICES                                                                          ,Staff Payment,BA0000302984,5.00,,BA0000302984,1,G1160                         ,4315,11,
BEIS,The Insolvency Service,13/02/2017,Travel and Subsistence,OFFICIAL RECEIVER SERVICES                                                                          ,Staff Payment,BA0000302984,29.33,,BA0000302984,1,G1160                         ,4316,11,
BEIS,The Insolvency Service,13/02/2017,Travel and Subsistence,OFFICIAL RECEIVER SERVICES                                                                          ,Staff Payment,BA0000302984,4.48,,BA0000302984,1,G1160                         ,4717,11,
BEIS,The Insolvency Service,13/02/2017,Travel and Subsistence,OFFICIAL RECEIVER SERVICES                                                                          ,Staff Payment,BA0000302984,24.20,,BA0000302984,1,G1160                         ,4717,11,
BEIS,The Insolvency Service,13/02/2017,Travel and Subsistence,OFFICIAL RECEIVER SERVICES                                                                          ,Staff Payment,BA0000302984,4.05,,BA0000302984,1,G1160                         ,4717,11,
BEIS,The Insolvency Service,13/02/2017,Travel and Subsistence,OFFICIAL RECEIVER SERVICES                                                                          ,Staff Payment,BA0000302984,5.00,,BA0000302984,1,G1160                         ,4612,11,
BEIS,The Insolvency Service,13/02/2017,Travel and Subsistence,OFFICIAL RECEIVER SERVICES                                                                          ,Staff Payment,BA0000302984,28.55,,BA0000302984,1,G1160                         ,4312,11,
BEIS,The Insolvency Service,13/02/2017,Travel and Subsistence,OFFICIAL RECEIVER SERVICES                                                                          ,Staff Payment,BA0000302984,20.30,,BA0000302984,1,G1160                         ,4811,11,
BEIS,The Insolvency Service,13/02/2017,Travel and Subsistence,OFFICIAL RECEIVER SERVICES                                                                          ,Staff Payment,BA0000302984,5.00,,BA0000302984,1,G1160                         ,4314,11,
BEIS,The Insolvency Service,13/02/2017,Travel and Subsistence,PEOPLE & CAPABILITY                                                                                 ,Staff Payment,BA0000302984,19.12,,BA0000302984,1,G1160                         ,3501,11,
BEIS,The Insolvency Service,13/02/2017,Travel and Subsistence,PEOPLE & CAPABILITY                                                                                 ,Staff Payment,BA0000302984,11.80,,BA0000302984,1,G1160                         ,3516,11,
BEIS,The Insolvency Service,13/02/2017,Travel and Subsistence,PEOPLE & CAPABILITY                                                                                 ,Staff Payment,BA0000302984,9.95,,BA0000302984,1,G1160                         ,3516,11,
BEIS,The Insolvency Service,13/02/2017,Travel and Subsistence,PEOPLE & CAPABILITY                                                                                 ,Staff Payment,BA0000302984,9.40,,BA0000302984,1,G1160                         ,3516,11,
BEIS,The Insolvency Service,13/02/2017,Travel and Subsistence,PEOPLE & CAPABILITY                                                                                 ,Staff Payment,BA0000302984,24.35,,BA0000302984,1,G1160                         ,3516,11,
BEIS,The Insolvency Service,13/02/2017,Office Supplies and Services,PEOPLE & CAPABILITY                                                                                 ,Staff Payment,BA0000302984,8.99,,BA0000302984,1,R3200                         ,3516,11,
BEIS,The Insolvency Service,13/02/2017,Postage,FINANCE AND COMMERCIAL                                                                              ,TNT UK LTD,BA0000302968,66.29,354715057,BA0000302968,1,F2200,3417,11,
BEIS,The Insolvency Service,14/02/2017,Agency Workers,FINANCE AND COMMERCIAL                                                                              ,ALLEN LANE LIMITED,BA0000303011,"5,584.30",835970985,BA0000303011,1,C7110,3420,11,
BEIS,The Insolvency Service,14/02/2017,Postage,FINANCE AND COMMERCIAL                                                                              ,BIS - DEPT. FOR BUSINESS INNOVATION & SKILLS,BA0000303007,"1,217.01",888825550,BA0000303007,1,F2200,3427,11,
BEIS,The Insolvency Service,14/02/2017,Insolvency Case Related Costs,OFFICIAL RECEIVER SERVICES                                                                          ,COMPANIES HOUSE,BA0000303006,4.00,GD255,BA0000303006,1,R3100,4316,11,
BEIS,The Insolvency Service,14/02/2017,Training Costs,BUSINESS SERVICES DIRECTORATE                                                                       ,PENTAGON LEISURE SERVICES T/A PENTAGON IT EDUCATION AGENCY,BA0000302999,"3,196.00",652888003,BA0000302999,1,P5200,2223,11,
BEIS,The Insolvency Service,14/02/2017,Insolvency Case Related Costs,OFFICIAL RECEIVER SERVICES                                                                          ,THE STATIONERY OFFICE LTD,BA0000303000,144.48,662774703,BA0000303000,1,H3100,4999,11,
BEIS,The Insolvency Service,14/02/2017,Insolvency Case Related Costs,OFFICIAL RECEIVER SERVICES                                                                          ,THE STATIONERY OFFICE LTD,BA0000303001,144.48,662774703,BA0000303001,1,H3100,4999,11,
BEIS,The Insolvency Service,14/02/2017,Insolvency Case Related Costs,OFFICIAL RECEIVER SERVICES                                                                          ,THE STATIONERY OFFICE LTD,BA0000303002,72.24,662774703,BA0000303002,1,H3100,4999,11,
BEIS,The Insolvency Service,14/02/2017,Insolvency Case Related Costs,OFFICIAL RECEIVER SERVICES                                                                          ,THE STATIONERY OFFICE LTD,BA0000303003,72.24,662774703,BA0000303003,1,H3100,4999,11,
BEIS,The Insolvency Service,14/02/2017,Insolvency Case Related Costs,OFFICIAL RECEIVER SERVICES                                                                          ,THE STATIONERY OFFICE LTD,BA0000303004,72.24,662774703,BA0000303004,1,H3100,4999,11,
BEIS,The Insolvency Service,14/02/2017,Telecoms,INFORMATION TECHNOLOGY                                                                              ,VODAFONE - CABLE & WIRELESS COMMUNICATIONS,BA0000303008,585.40,232303710,BA0000303008,1,F1100,3416,11,
BEIS,The Insolvency Service,14/02/2017,Telecoms,INFORMATION TECHNOLOGY                                                                              ,VODAFONE CORPORATE LTD,BA0000303009,388.80,569953277,BA0000303009,1,F1100,3416,11,
BEIS,The Insolvency Service,14/02/2017,Telecoms,INFORMATION TECHNOLOGY                                                                              ,VODAFONE CORPORATE LTD,BA0000303010,237.60,569953277,BA0000303010,1,F1100,3416,11,
BEIS,The Insolvency Service,15/02/2017,Insolvency Case Related Costs,OFFICIAL RECEIVER SERVICES                                                                          ,COMPANIES HOUSE,BA0000303024,4.00,GD255,BA0000303024,1,R3100,4999,11,
BEIS,The Insolvency Service,15/02/2017,Office Supplies and Services,P&C - People Relations                                                                              ,ENEI Employers Network for Equality and Inclusion,BA0000303017,"4,320.00",,BA0000303017,1,R3300,3502,11,
BEIS,The Insolvency Service,15/02/2017,Computer and IT Systems,FINANCE AND COMMERCIAL                                                                              ,EQUIFAX LTD                                                 ,BA0000303013,75.00,,BA0000303013,1,E7110,2203,11,
BEIS,The Insolvency Service,15/02/2017,Insolvency Case Related Costs,FINANCE AND COMMERCIAL                                                                              ,EQUIFAX LTD                                                 ,BA0000303016,"17,042.58",,BA0000303016,1,H3100,3427,11,
BEIS,The Insolvency Service,15/02/2017,Employee Related Costs,PEOPLE & CAPABILITY                                                                                 ,HIGHSTREETVOUCHERS.COM                                      ,BA0000303025,"9,700.00",165907048,BA0000303025,1,P1200,3511,11,
BEIS,The Insolvency Service,15/02/2017,Insolvency Case Related Costs,OFFICIAL RECEIVER SERVICES                                                                          ,HPI LTD,BA0000303019,10.91,942407139,BA0000303019,1,H3100,4514,11,
BEIS,The Insolvency Service,15/02/2017,Investigation and Enforcement Costs,OFFICIAL RECEIVER SERVICES                                                                          ,MISS KATHERINE APPS                                         ,BA0000303018,"1,420.00",933811918,BA0000303018,1,N1300,4310,11,
BEIS,The Insolvency Service,15/02/2017,Postage,BUSINESS SERVICES DIRECTORATE                                                                       ,NEOPOST LTD - FRANKING TOP UPS,BA0000303015,800.00,,BA0000303015,1,F2100,4818,11,
BEIS,The Insolvency Service,15/02/2017,Postage,OFFICIAL RECEIVER SERVICES                                                                          ,NEOPOST LTD - FRANKING TOP UPS,BA0000303015,200.00,,BA0000303015,1,F2100,4813,11,
BEIS,The Insolvency Service,15/02/2017,Postage,OFFICIAL RECEIVER SERVICES                                                                          ,NEOPOST LTD - FRANKING TOP UPS,BA0000303015,500.00,,BA0000303015,1,F2100,4611,11,
BEIS,The Insolvency Service,15/02/2017,Postage,OFFICIAL RECEIVER SERVICES                                                                          ,NEOPOST LTD - FRANKING TOP UPS,BA0000303015,500.00,,BA0000303015,1,F2100,4715,11,
BEIS,The Insolvency Service,15/02/2017,Postage,OFFICIAL RECEIVER SERVICES                                                                          ,NEOPOST LTD - FRANKING TOP UPS,BA0000303015,500.00,,BA0000303015,1,F2100,4717,11,
BEIS,The Insolvency Service,15/02/2017,Postage,OFFICIAL RECEIVER SERVICES                                                                          ,NEOPOST LTD - FRANKING TOP UPS,BA0000303015,700.00,,BA0000303015,1,F2100,4613,11,
BEIS,The Insolvency Service,15/02/2017,Postage,OFFICIAL RECEIVER SERVICES                                                                          ,NEOPOST LTD - FRANKING TOP UPS,BA0000303015,"1,000.00",,BA0000303015,1,F2100,4316,11,
BEIS,The Insolvency Service,15/02/2017,Postage,OFFICIAL RECEIVER SERVICES                                                                          ,NEOPOST LTD - FRANKING TOP UPS,BA0000303015,"1,000.00",,BA0000303015,1,F2100,4713,11,
BEIS,The Insolvency Service,15/02/2017,Postage,OFFICIAL RECEIVER SERVICES                                                                          ,NEOPOST LTD - FRANKING TOP UPS,BA0000303015,"1,000.00",,BA0000303015,1,F2100,4715,11,
BEIS,The Insolvency Service,15/02/2017,Postage,FINANCE AND COMMERCIAL                                                                              ,ROYAL MAIL GROUP LTD - RESPONSE SERVICES)                   ,BA0000303014,78.29,243170002,BA0000303014,1,F2200,3427,11,
BEIS,The Insolvency Service,15/02/2017,Travel and Subsistence,INFORMATION TECHNOLOGY                                                                              ,Staff Payment,BA0000303021,4.39,,BA0000303021,1,G1110                         ,3207,11,
BEIS,The Insolvency Service,15/02/2017,Travel and Subsistence,INFORMATION TECHNOLOGY                                                                              ,Staff Payment,BA0000303021,51.55,,BA0000303021,1,G1130                         ,3207,11,
BEIS,The Insolvency Service,15/02/2017,Travel and Subsistence,INFORMATION TECHNOLOGY                                                                              ,Staff Payment,BA0000303021,42.30,,BA0000303021,1,G1150                         ,3201,11,
BEIS,The Insolvency Service,15/02/2017,Travel and Subsistence,CHIEF EXECUTIVE DIVISION                                                                            ,Staff Payment,BA0000303021,60.00,,BA0000303021,1,G1160                         ,2200,11,
BEIS,The Insolvency Service,15/02/2017,Travel and Subsistence,INFORMATION TECHNOLOGY                                                                              ,Staff Payment,BA0000303021,16.09,,BA0000303021,1,G1160                         ,3207,11,
BEIS,The Insolvency Service,15/02/2017,Travel and Subsistence,BUSINESS SERVICES DIRECTORATE                                                                       ,Staff Payment,BA0000303021,4.90,,BA0000303021,1,G1130                         ,2223,11,
BEIS,The Insolvency Service,15/02/2017,Travel and Subsistence,BUSINESS SERVICES DIRECTORATE                                                                       ,Staff Payment,BA0000303021,55.40,,BA0000303021,1,G1130                         ,2115,11,
BEIS,The Insolvency Service,15/02/2017,Travel and Subsistence,CHIEF EXECUTIVE DIVISION                                                                            ,Staff Payment,BA0000303021,5.40,,BA0000303021,1,G1130                         ,2200,11,
BEIS,The Insolvency Service,15/02/2017,Travel and Subsistence,INFORMATION TECHNOLOGY                                                                              ,Staff Payment,BA0000303021,4.20,,BA0000303021,1,G1130                         ,3207,11,
BEIS,The Insolvency Service,15/02/2017,Travel and Subsistence,INVESTIGATIONS & ENFORCEMENT                                                                        ,Staff Payment,BA0000303021,19.80,,BA0000303021,1,G1130                         ,5003,11,
BEIS,The Insolvency Service,15/02/2017,Travel and Subsistence,OFFICIAL RECEIVER SERVICES                                                                          ,Staff Payment,BA0000303021,18.50,,BA0000303021,1,G1130                         ,4613,11,
BEIS,The Insolvency Service,15/02/2017,Travel and Subsistence,OFFICIAL RECEIVER SERVICES                                                                          ,Staff Payment,BA0000303021,4.00,,BA0000303021,1,G1130                         ,4101,11,
BEIS,The Insolvency Service,15/02/2017,Travel and Subsistence,BUSINESS SERVICES DIRECTORATE                                                                       ,Staff Payment,BA0000303021,69.30,,BA0000303021,1,G1140                         ,4220,11,
BEIS,The Insolvency Service,15/02/2017,Travel and Subsistence,BUSINESS SERVICES DIRECTORATE                                                                       ,Staff Payment,BA0000303021,5.40,,BA0000303021,1,G1140                         ,2223,11,
BEIS,The Insolvency Service,15/02/2017,Travel and Subsistence,BUSINESS SERVICES DIRECTORATE                                                                       ,Staff Payment,BA0000303021,129.70,,BA0000303021,1,G1140                         ,3613,11,
BEIS,The Insolvency Service,15/02/2017,Travel and Subsistence,INVESTIGATIONS & ENFORCEMENT                                                                        ,Staff Payment,BA0000303021,3.90,,BA0000303021,1,G1140                         ,5003,11,
BEIS,The Insolvency Service,15/02/2017,Travel and Subsistence,INVESTIGATIONS & ENFORCEMENT                                                                        ,Staff Payment,BA0000303021,18.45,,BA0000303021,1,G1140                         ,5003,11,
BEIS,The Insolvency Service,15/02/2017,Travel and Subsistence,OFFICIAL RECEIVER SERVICES                                                                          ,Staff Payment,BA0000303021,3.30,,BA0000303021,1,G1140                         ,4511,11,
BEIS,The Insolvency Service,15/02/2017,Travel and Subsistence,OFFICIAL RECEIVER SERVICES                                                                          ,Staff Payment,BA0000303021,26.55,,BA0000303021,1,G1140                         ,4511,11,
BEIS,The Insolvency Service,15/02/2017,Travel and Subsistence,OFFICIAL RECEIVER SERVICES                                                                          ,Staff Payment,BA0000303021,63.45,,BA0000303021,1,G1140                         ,4715,11,
BEIS,The Insolvency Service,15/02/2017,Travel and Subsistence,OFFICIAL RECEIVER SERVICES                                                                          ,Staff Payment,BA0000303021,10.00,,BA0000303021,1,G1140                         ,4611,11,
BEIS,The Insolvency Service,15/02/2017,Travel and Subsistence,OFFICIAL RECEIVER SERVICES                                                                          ,Staff Payment,BA0000303021,30.60,,BA0000303021,1,G1140                         ,4611,11,
BEIS,The Insolvency Service,15/02/2017,Travel and Subsistence,OFFICIAL RECEIVER SERVICES                                                                          ,Staff Payment,BA0000303021,76.00,,BA0000303021,1,G1140                         ,4715,11,
BEIS,The Insolvency Service,15/02/2017,Travel and Subsistence,OFFICIAL RECEIVER SERVICES                                                                          ,Staff Payment,BA0000303021,88.20,,BA0000303021,1,G1140                         ,4613,11,
BEIS,The Insolvency Service,15/02/2017,Travel and Subsistence,OFFICIAL RECEIVER SERVICES                                                                          ,Staff Payment,BA0000303021,27.00,,BA0000303021,1,G1140                         ,4511,11,
BEIS,The Insolvency Service,15/02/2017,Travel and Subsistence,OFFICIAL RECEIVER SERVICES                                                                          ,Staff Payment,BA0000303021,12.00,,BA0000303021,1,G1140                         ,4104,11,
BEIS,The Insolvency Service,15/02/2017,Travel and Subsistence,BUSINESS SERVICES DIRECTORATE                                                                       ,Staff Payment,BA0000303021,11.10,,BA0000303021,1,G1150                         ,2223,11,
BEIS,The Insolvency Service,15/02/2017,Travel and Subsistence,BUSINESS SERVICES DIRECTORATE                                                                       ,Staff Payment,BA0000303021,8.00,,BA0000303021,1,G1150                         ,4220,11,
BEIS,The Insolvency Service,15/02/2017,Travel and Subsistence,CHIEF EXECUTIVE DIVISION                                                                            ,Staff Payment,BA0000303021,14.00,,BA0000303021,1,G1150                         ,2200,11,
BEIS,The Insolvency Service,15/02/2017,Travel and Subsistence,INFORMATION TECHNOLOGY                                                                              ,Staff Payment,BA0000303021,23.90,,BA0000303021,1,G1150                         ,3207,11,
BEIS,The Insolvency Service,15/02/2017,Travel and Subsistence,OFFICIAL RECEIVER SERVICES                                                                          ,Staff Payment,BA0000303021,13.40,,BA0000303021,1,G1150                         ,4613,11,
BEIS,The Insolvency Service,15/02/2017,Travel and Subsistence,OFFICIAL RECEIVER SERVICES                                                                          ,Staff Payment,BA0000303021,7.80,,BA0000303021,1,G1150                         ,4511,11,
BEIS,The Insolvency Service,15/02/2017,Travel and Subsistence,BUSINESS SERVICES DIRECTORATE                                                                       ,Staff Payment,BA0000303021,29.50,,BA0000303021,1,G1160                         ,4220,11,
BEIS,The Insolvency Service,15/02/2017,Travel and Subsistence,BUSINESS SERVICES DIRECTORATE                                                                       ,Staff Payment,BA0000303021,14.50,,BA0000303021,1,G1160                         ,2223,11,
BEIS,The Insolvency Service,15/02/2017,Travel and Subsistence,BUSINESS SERVICES DIRECTORATE                                                                       ,Staff Payment,BA0000303021,9.29,,BA0000303021,1,G1160                         ,4220,11,
BEIS,The Insolvency Service,15/02/2017,Travel and Subsistence,BUSINESS SERVICES DIRECTORATE                                                                       ,Staff Payment,BA0000303021,5.00,,BA0000303021,1,G1160                         ,2223,11,
BEIS,The Insolvency Service,15/02/2017,Travel and Subsistence,BUSINESS SERVICES DIRECTORATE                                                                       ,Staff Payment,BA0000303021,8.30,,BA0000303021,1,G1160                         ,2115,11,
BEIS,The Insolvency Service,15/02/2017,Travel and Subsistence,BUSINESS SERVICES DIRECTORATE                                                                       ,Staff Payment,BA0000303021,8.89,,BA0000303021,1,G1160                         ,2115,11,
BEIS,The Insolvency Service,15/02/2017,Travel and Subsistence,BUSINESS SERVICES DIRECTORATE                                                                       ,Staff Payment,BA0000303021,36.69,,BA0000303021,1,G1160                         ,4220,11,
BEIS,The Insolvency Service,15/02/2017,Travel and Subsistence,BUSINESS SERVICES DIRECTORATE                                                                       ,Staff Payment,BA0000303021,28.15,,BA0000303021,1,G1160                         ,3613,11,
BEIS,The Insolvency Service,15/02/2017,Travel and Subsistence,CHIEF EXECUTIVE DIVISION                                                                            ,Staff Payment,BA0000303021,37.70,,BA0000303021,1,G1160                         ,2200,11,
BEIS,The Insolvency Service,15/02/2017,Travel and Subsistence,CHIEF EXECUTIVE DIVISION                                                                            ,Staff Payment,BA0000303021,69.40,,BA0000303021,1,G1160                         ,2200,11,
BEIS,The Insolvency Service,15/02/2017,Travel and Subsistence,INFORMATION TECHNOLOGY                                                                              ,Staff Payment,BA0000303021,36.79,,BA0000303021,1,G1160                         ,3207,11,
BEIS,The Insolvency Service,15/02/2017,Travel and Subsistence,INVESTIGATIONS & ENFORCEMENT                                                                        ,Staff Payment,BA0000303021,4.80,,BA0000303021,1,G1160                         ,5003,11,
BEIS,The Insolvency Service,15/02/2017,Travel and Subsistence,OFFICIAL RECEIVER SERVICES                                                                          ,Staff Payment,BA0000303021,55.00,,BA0000303021,1,G1160                         ,4613,11,
BEIS,The Insolvency Service,15/02/2017,Travel and Subsistence,OFFICIAL RECEIVER SERVICES                                                                          ,Staff Payment,BA0000303021,5.00,,BA0000303021,1,G1160                         ,2113,11,
BEIS,The Insolvency Service,15/02/2017,Travel and Subsistence,OFFICIAL RECEIVER SERVICES                                                                          ,Staff Payment,BA0000303021,5.00,,BA0000303021,1,G1160                         ,2113,11,
BEIS,The Insolvency Service,15/02/2017,Travel and Subsistence,OFFICIAL RECEIVER SERVICES                                                                          ,Staff Payment,BA0000303021,5.00,,BA0000303021,1,G1160                         ,4715,11,
BEIS,The Insolvency Service,15/02/2017,Travel and Subsistence,OFFICIAL RECEIVER SERVICES                                                                          ,Staff Payment,BA0000303021,59.55,,BA0000303021,1,G1160                         ,4613,11,
BEIS,The Insolvency Service,15/02/2017,Travel and Subsistence,OFFICIAL RECEIVER SERVICES                                                                          ,Staff Payment,BA0000303021,4.94,,BA0000303021,1,G1160                         ,4613,11,
BEIS,The Insolvency Service,15/02/2017,Travel and Subsistence,OFFICIAL RECEIVER SERVICES                                                                          ,Staff Payment,BA0000303021,5.00,,BA0000303021,1,G1160                         ,4613,11,
BEIS,The Insolvency Service,15/02/2017,Travel and Subsistence,OFFICIAL RECEIVER SERVICES                                                                          ,Staff Payment,BA0000303021,19.41,,BA0000303021,1,G1160                         ,4511,11,
BEIS,The Insolvency Service,15/02/2017,Travel and Subsistence,OFFICIAL RECEIVER SERVICES                                                                          ,Staff Payment,BA0000303021,3.89,,BA0000303021,1,G1160                         ,4104,11,
BEIS,The Insolvency Service,15/02/2017,Travel and Subsistence,OFFICIAL RECEIVER SERVICES                                                                          ,Staff Payment,BA0000303021,7.80,,BA0000303021,1,G1160                         ,4104,11,
BEIS,The Insolvency Service,15/02/2017,Travel and Subsistence,OFFICIAL RECEIVER SERVICES                                                                          ,Staff Payment,BA0000303021,4.80,,BA0000303021,1,G1160                         ,4812,11,
BEIS,The Insolvency Service,15/02/2017,Travel and Subsistence,OFFICIAL RECEIVER SERVICES                                                                          ,Staff Payment,BA0000303021,5.00,,BA0000303021,1,G1160                         ,4812,11,
BEIS,The Insolvency Service,15/02/2017,Insolvency Case Related Costs,INVESTIGATIONS & ENFORCEMENT                                                                        ,Staff Payment,BA0000303021,21.00,,BA0000303021,1,H3100                         ,3711,11,
BEIS,The Insolvency Service,15/02/2017,Employee Related Costs,PEOPLE & CAPABILITY                                                                                 ,Staff Payment,BA0000303021,231.00,,BA0000303021,1,P3100                         ,3511,11,
BEIS,The Insolvency Service,15/02/2017,Telecoms,INFORMATION TECHNOLOGY                                                                              ,VODAFONE CORPORATE LTD,BA0000303022,108.00,569953277,BA0000303022,1,F1100,3416,11,
BEIS,The Insolvency Service,15/02/2017,Office Supplies and Services,INVESTIGATIONS & ENFORCEMENT                                                                        ,WILLIAMS LEA LTD,BA0000303020,204.85,662774703,BA0000303020,1,R2100,3321,11,
BEIS,The Insolvency Service,15/02/2017,Office Supplies and Services,INVESTIGATIONS & ENFORCEMENT                                                                        ,WILLIAMS LEA LTD,BA0000303020,269.77,662774703,BA0000303020,1,R2100,3711,11,
BEIS,The Insolvency Service,16/02/2017,Investigation and Enforcement Costs,INVESTIGATIONS & ENFORCEMENT                                                                        ,BOND DICKINSON                                              ,BA0000303035,"18,154.73",123392627,BA0000303035,1,N1100,5001,11,
BEIS,The Insolvency Service,16/02/2017,Investigation and Enforcement Costs,OFFICIAL RECEIVER SERVICES                                                                          ,BOND DICKINSON                                              ,BA0000303036,"22,237.98",123392627,BA0000303036,1,N1120,4314,11,
BEIS,The Insolvency Service,16/02/2017,Investigation and Enforcement Costs,INVESTIGATIONS & ENFORCEMENT                                                                        ,BOND DICKINSON                                              ,BA0000303035,"90,991.74",123392627,BA0000303035,1,N1200,3321,11,
BEIS,The Insolvency Service,16/02/2017,Investigation and Enforcement Costs,INVESTIGATIONS & ENFORCEMENT                                                                        ,BOND DICKINSON                                              ,BA0000303035,"9,400.70",123392627,BA0000303035,1,N1700,5004,11,
BEIS,The Insolvency Service,16/02/2017,Investigation and Enforcement Costs,INVESTIGATIONS & ENFORCEMENT                                                                        ,BOND DICKINSON                                              ,BA0000303035,"19,997.54",123392627,BA0000303035,1,N5300,5003,11,
BEIS,The Insolvency Service,16/02/2017,Investigation and Enforcement Costs,INVESTIGATIONS & ENFORCEMENT                                                                        ,BOND DICKINSON                                              ,BA0000303035,"33,560.58",123392627,BA0000303035,1,N5300,5003,11,
BEIS,The Insolvency Service,16/02/2017,Investigation and Enforcement Costs,INVESTIGATIONS & ENFORCEMENT                                                                        ,CLARKE WILLMOTT SOLICITORS,BA0000303047,275.59,129913060,BA0000303047,1,N1700,5004,11,
BEIS,The Insolvency Service,16/02/2017,Insolvency Case Related Costs,INVESTIGATIONS & ENFORCEMENT                                                                        ,COMPANIES HOUSE,BA0000303043,132.00,GD255,BA0000303043,1,R3100,5004,11,
BEIS,The Insolvency Service,16/02/2017,Insolvency Case Related Costs,INVESTIGATIONS & ENFORCEMENT                                                                        ,COMPANIES HOUSE,BA0000303044,9.00,GD255,BA0000303044,1,R3100,5004,11,
BEIS,The Insolvency Service,16/02/2017,Insolvency Case Related Costs,INVESTIGATIONS & ENFORCEMENT                                                                        ,COMPANIES HOUSE,BA0000303045,27.00,GD255,BA0000303045,1,R3100,5004,11,
BEIS,The Insolvency Service,16/02/2017,Insolvency Case Related Costs,INVESTIGATIONS & ENFORCEMENT                                                                        ,COMPANIES HOUSE,BA0000303046,4.00,GD255,BA0000303046,1,R3100,5004,11,
BEIS,The Insolvency Service,16/02/2017,Investigation and Enforcement Costs,INVESTIGATIONS & ENFORCEMENT                                                                        ,DWF                                                         ,BA0000303057,17.47,,BA0000303057,1,N1100,5001,11,
BEIS,The Insolvency Service,16/02/2017,Investigation and Enforcement Costs,INVESTIGATIONS & ENFORCEMENT                                                                        ,DWF                                                         ,BA0000303060,"8,461.72",,BA0000303060,1,N1100,5001,11,
BEIS,The Insolvency Service,16/02/2017,Investigation and Enforcement Costs,INVESTIGATIONS & ENFORCEMENT                                                                        ,DWF                                                         ,BA0000303056,"35,308.50",,BA0000303056,1,N1200,3321,11,
BEIS,The Insolvency Service,16/02/2017,Investigation and Enforcement Costs,INVESTIGATIONS & ENFORCEMENT                                                                        ,DWF                                                         ,BA0000303058,394.00,,BA0000303058,1,N1320,3316,11,
BEIS,The Insolvency Service,16/02/2017,Investigation and Enforcement Costs,INVESTIGATIONS & ENFORCEMENT                                                                        ,DWF                                                         ,BA0000303059,803.55,,BA0000303059,1,N1700,5004,11,
BEIS,The Insolvency Service,16/02/2017,Investigation and Enforcement Costs,INVESTIGATIONS & ENFORCEMENT                                                                        ,DWF                                                         ,BA0000303055,"1,457.65",,BA0000303055,1,N5310,5003,11,
BEIS,The Insolvency Service,16/02/2017,Investigation and Enforcement Costs,INVESTIGATIONS & ENFORCEMENT                                                                        ,DWF                                                         ,BA0000303061,"20,668.60",,BA0000303061,1,N5310,5003,11,
BEIS,The Insolvency Service,16/02/2017,Investigation and Enforcement Costs,INVESTIGATIONS & ENFORCEMENT                                                                        ,GOWLING WRAGGE LAWRENCE GRAHAM  & CO                        ,BA0000303052,"14,571.20",858698838,BA0000303052,1,N1100,5001,11,
BEIS,The Insolvency Service,16/02/2017,Investigation and Enforcement Costs,INVESTIGATIONS & ENFORCEMENT                                                                        ,GOWLING WRAGGE LAWRENCE GRAHAM  & CO                        ,BA0000303050,354.20,858698838,BA0000303050,1,N1200,3321,11,
BEIS,The Insolvency Service,16/02/2017,Investigation and Enforcement Costs,INVESTIGATIONS & ENFORCEMENT                                                                        ,GOWLING WRAGGE LAWRENCE GRAHAM  & CO                        ,BA0000303054,"78,544.59",858698838,BA0000303054,1,N1200,3321,11,
BEIS,The Insolvency Service,16/02/2017,Investigation and Enforcement Costs,INVESTIGATIONS & ENFORCEMENT                                                                        ,GOWLING WRAGGE LAWRENCE GRAHAM  & CO                        ,BA0000303051,"9,954.20",858698838,BA0000303051,1,N1700,5004,11,
BEIS,The Insolvency Service,16/02/2017,Investigation and Enforcement Costs,INVESTIGATIONS & ENFORCEMENT                                                                        ,GOWLING WRAGGE LAWRENCE GRAHAM  & CO                        ,BA0000303053,"18,783.81",858698838,BA0000303053,1,N5310,5003,11,
BEIS,The Insolvency Service,16/02/2017,Investigation and Enforcement Costs,INVESTIGATIONS & ENFORCEMENT                                                                        ,HOWES PERCIVAL,BA0000303039,"19,590.00",119523573,BA0000303039,1,N1100,5001,11,
BEIS,The Insolvency Service,16/02/2017,Investigation and Enforcement Costs,INVESTIGATIONS & ENFORCEMENT                                                                        ,HOWES PERCIVAL,BA0000303040,960.07,119523573,BA0000303040,1,N1100,5001,11,
BEIS,The Insolvency Service,16/02/2017,Investigation and Enforcement Costs,INVESTIGATIONS & ENFORCEMENT                                                                        ,HOWES PERCIVAL,BA0000303042,59.00,119523573,BA0000303042,1,N1100,5001,11,
BEIS,The Insolvency Service,16/02/2017,Investigation and Enforcement Costs,INVESTIGATIONS & ENFORCEMENT                                                                        ,HOWES PERCIVAL,BA0000303042,"7,222.30",119523573,BA0000303042,1,N1100,5001,11,
BEIS,The Insolvency Service,16/02/2017,Investigation and Enforcement Costs,INVESTIGATIONS & ENFORCEMENT                                                                        ,HOWES PERCIVAL,BA0000303037,"40,901.79",119523573,BA0000303037,1,N1200,3321,11,
BEIS,The Insolvency Service,16/02/2017,Investigation and Enforcement Costs,INVESTIGATIONS & ENFORCEMENT                                                                        ,HOWES PERCIVAL,BA0000303038,854.00,119523573,BA0000303038,1,N1700,5004,11,
BEIS,The Insolvency Service,16/02/2017,Investigation and Enforcement Costs,INVESTIGATIONS & ENFORCEMENT                                                                        ,HOWES PERCIVAL,BA0000303038,"5,722.00",119523573,BA0000303038,1,N1700,5004,11,
BEIS,The Insolvency Service,16/02/2017,Investigation and Enforcement Costs,INVESTIGATIONS & ENFORCEMENT                                                                        ,HOWES PERCIVAL,BA0000303041,189.15,119523573,BA0000303041,1,N5310,5003,11,
BEIS,The Insolvency Service,16/02/2017,Employee Related Costs,INVESTIGATIONS & ENFORCEMENT                                                                        ,POSTURITE (UK) LTD.,BA0000303062,957.78,,BA0000303062,1,P4100,3314,11,
BEIS,The Insolvency Service,16/02/2017,Postage,FINANCE AND COMMERCIAL                                                                              ,ROYAL MAIL GROUP LTD - RESPONSE SERVICES)                   ,BA0000303027,26.76,243170002,BA0000303027,1,F2200,3427,11,
BEIS,The Insolvency Service,16/02/2017,Postage,FINANCE AND COMMERCIAL                                                                              ,ROYAL MAIL GROUP LTD - RESPONSE SERVICES)                   ,BA0000303032,9.51,243170002,BA0000303032,1,F2200,3427,11,
BEIS,The Insolvency Service,16/02/2017,Travel and Subsistence,INVESTIGATIONS & ENFORCEMENT                                                                        ,Staff Payment,BA0000303063,3.10,,BA0000303063,1,G1130                         ,5004,11,
BEIS,The Insolvency Service,16/02/2017,Travel and Subsistence,INVESTIGATIONS & ENFORCEMENT                                                                        ,Staff Payment,BA0000303063,12.30,,BA0000303063,1,G1150                         ,5004,11,
BEIS,The Insolvency Service,16/02/2017,Travel and Subsistence,INVESTIGATIONS & ENFORCEMENT                                                                        ,Staff Payment,BA0000303063,14.50,,BA0000303063,1,G1160                         ,5004,11,
BEIS,The Insolvency Service,16/02/2017,Travel and Subsistence,INVESTIGATIONS & ENFORCEMENT                                                                        ,Staff Payment,BA0000303063,3.00,,BA0000303063,1,G1160                         ,5004,11,
BEIS,The Insolvency Service,16/02/2017,Travel and Subsistence,BUSINESS SERVICES DIRECTORATE                                                                       ,Staff Payment,BA0000303063,10.00,,BA0000303063,1,G1110                         ,3613,11,
BEIS,The Insolvency Service,16/02/2017,Travel and Subsistence,INVESTIGATIONS & ENFORCEMENT                                                                        ,Staff Payment,BA0000303063,2.60,,BA0000303063,1,G1130                         ,5001,11,
